Workbook

Sheet FPag

Sheet CalTab
A1: Calorieëntabel
A2: Ingredieënt | B2: Eenheid | D2: Kcal | E2: Eiwit | F2: Koolh. | G2: Vet | H2: kJ
A3: aalbessen | B3: 100 | C3: g | D3: =0.24*B3 -> 24 | E3: =0.01*B3 -> 1 | F3: =0.05*B3 -> 5 | G3: 0 | H3: =D3*4.1868 -> 100.4832
A4: aardappelen | B4: 100 | C4: g | D4: =0.848*B4 -> 84.8 | E4: =0.026*B4 -> 2.6 | F4: =0.186*B4 -> 18.6 | G4: 0 | H4: 355.04064
A5: aardappelkroketten | B5: 100 | C5: g | D5: =3.56*B5 -> 356 | E5: =0.34*B5 -> 34 | F5: =0.282*B5 -> 28.2 | G5: =0.12*B5 -> 12 | H5: 1490.5008
A6: aardappelpuree | B6: 100 | C6: g | D6: =1*B6 -> 100 | E6: =0.028*B6 -> 2.8 | F6: =0.11*B6 -> 11 | G6: =0.05*B6 -> 5 | H6: 418.68
A7: aardappelschijfjes | B7: 100 | C7: g | D7: =1.36*B7 -> 136 | E7: =0.02*B7 -> 2 | F7: =0.205*B7 -> 20.5 | G7: =0.05*B7 -> 5 | H7: 569.4048
A8: aardappelschijfjes (Aviko) | B8: 100 | C8: g | D8: =1.25*B8 -> 125 | E8: =0.03*B8 -> 3 | F8: =0.185*B8 -> 18.5 | G8: =0.04*B8 -> 4 | H8: 523.35
A9: aardappelschijfjes (CêlaVita) | B9: 100 | C9: g | D9: =0.8*B9 -> 80 | E9: =0.22*B9 -> 22 | F9: =0.179*B9 -> 17.9 | G9: =0*B9 -> 0 | H9: 334.944
A10: aardappelschijfjes (Colruyt) | B10: 100 | C10: g | D10: =1.44*B10 -> 144 | E10: =0.024*B10 -> 2.4 | F10: =0.224*B10 -> 22.4 | G10: =0.05*B10 -> 5 | H10: 602.8992
A11: aardappelschijfjes (McCain) | B11: 100 | C11: g | D11: =1.37*B11 -> 137 | E11: =0.022*B11 -> 2.2 | F11: =0.207*B11 -> 20.7 | G11: =0.05*B11 -> 5 | H11: 573.5916
A12: aardappelschijfjes (Oerlemans) | B12: 100 | C12: g | D12: =1.46*B12 -> 146 | E12: =0.03*B12 -> 3 | F12: =0.22*B12 -> 22 | G12: =0*B12 -> 0 | H12: 611.2728
A13: aardappelschijfjes (o'Lacy's) | B13: 100 | C13: g | D13: =1.27*B13 -> 127 | E13: =0.02*B13 -> 2 | F13: =0.2*B13 -> 20 | G13: =0.04*B13 -> 4 | H13: 531.7236
A14: aardappelsoesje | B14: 100 | C14: g | D14: =1.88*B14 -> 188 | E14: =0.053*B14 -> 5.3 | F14: =0.164*B14 -> 16.4 | G14: =0.112*B14 -> 11.2 | H14: 787.1184
A15: aardappelzetmeel | B15: 100 | C15: g | D15: =3.37*B15 -> 337 | E15: =0.005*B15 -> 0.5 | F15: =0.838*B15 -> 83.8 | G15: =0.001*B15 -> 0.1 | H15: 1410.9516
A16: aardbeien | B16: 100 | C16: g | D16: =0.24*B16 -> 24 | E16: =0.01*B16 -> 1 | F16: =0.05*B16 -> 5 | G16: 0 | H16: 100.4832
A17: abrikoos | B17: 1 | C17: st | D17: =20*B17 -> 20 | E17: 0 | F17: =5*B17 -> 5 | G17: 0 | H17: 83.736
A18: abrikozen-gebakje (vitalinea) | B18: 1 | C18: st | D18: =102*B18 -> 102 | E18: =1.4*B18 -> 1.4 | F18: =18*B18 -> 18 | G18: =2.6*B18 -> 2.6 | H18: 427.0536
A19: all bran | B19: 100 | C19: g | D19: =2.67*B19 -> 267 | E19: =0.14*B19 -> 14 | F19: =0.46*B19 -> 46 | G19: =0.03*B19 -> 3 | H19: 1117.8756
A20: amandelbroodje | B20: 100 | C20: g | D20: =4.63*B20 -> 463 | E20: =0.076*B20 -> 7.6 | F20: =0.43*B20 -> 43 | G20: =0.289*B20 -> 28.9 | H20: 1938.4884
A21: amandelen | B21: 100 | C21: g | D21: =5.78*B21 -> 578 | E21: =0.183*B21 -> 18.3 | F21: =0.043*B21 -> 4.3 | G21: =0.542*B21 -> 54.2 | H21: 2419.9704
A22: americain | B22: 100 | C22: g | D22: =1.25*B22 -> 125 | E22: =0.2*B22 -> 20 | F22: 0 | G22: =0.05*B22 -> 5 | H22: 523.35
A23: americain prepare | B23: 100 | C23: g | D23: =2.44*B23 -> 244 | E23: =0.16*B23 -> 16 | F23: =0*B23 -> 0 | G23: =0.2*B23 -> 20 | H23: 1021.5792
A24: amsoi (gekookt) | B24: 100 | C24: g | D24: =0.28*B24 -> 28 | E24: =0.02*B24 -> 2 | F24: =0.05*B24 -> 5 | G24: 0 | H24: 117.2304
A25: ananas | B25: 100 | C25: g | D25: =0.88*B25 -> 88 | E25: =0*B25 -> 0 | F25: =0.22*B25 -> 22 | G25: 0 | H25: 368.4384
A26: andijvie | B26: 100 | C26: g | D26: =0.17*B26 -> 17 | E26: =0.018*B26 -> 1.8 | F26: =0.021*B26 -> 2.1 | G26: =0.002*B26 -> 0.2 | H26: 71.1756
A27: anijshagel | B27: 100 | C27: g | D27: =3.93*B27 -> 393 | E27: =0.001*B27 -> 0.1 | F27: =0.982*B27 -> 98.2 | G27: 0 | H27: 1645.4124
A28: ansjovis in olie | B28: 100 | C28: g | D28: =1.89*B28 -> 189 | E28: =0.18*B28 -> 18 | F28: =0*B28 -> 0 | G28: =0.13*B28 -> 13 | H28: 791.3052
A29: appel | B29: 1 | C29: st | D29: =60*B29 -> 60 | E29: =1*B29 -> 1 | F29: =14*B29 -> 14 | G29: 0 | H29: 251.208
A30: appelbeignet | B30: 100 | C30: g | D30: =1.9*B30 -> 190 | E30: =0.026*B30 -> 2.6 | F30: =0.186*B30 -> 18.6 | G30: =0.117*B30 -> 11.7 | H30: 795.492
A31: appelcarre | B31: 100 | C31: g | D31: =3.18*B31 -> 318 | E31: =0.037*B31 -> 3.7 | F31: =0.386*B31 -> 38.6 | G31: =0.166*B31 -> 16.6 | H31: 1331.4024
A32: appelflap | B32: 1 | C32: st | D32: =146*B32 -> 146 | E32: =2*B32 -> 2 | F32: =12*B32 -> 12 | G32: =10*B32 -> 10 | H32: 611.2728
A33: appelmoes | B33: 100 | C33: g | D33: =0.76*B33 -> 76 | E33: 0 | F33: =0.19*B33 -> 19 | G33: 0 | H33: 318.1968
A34: appelsap | B34: 100 | C34: ml | D34: =0.48*B34 -> 48 | E34: =0.001*B34 -> 0.1 | F34: =0.119*B34 -> 11.9 | G34: =0*B34 -> 0 | H34: 200.9664
A35: appelstroop | B35: 1 | C35: el | D35: =44*B35 -> 44 | E35: 0 | F35: =11*B35 -> 11 | G35: 0 | H35: 184.2192
A36: appeltaart | B36: 100 | C36: g | D36: =2.34*B36 -> 234 | E36: =0.036*B36 -> 3.6 | F36: =0.386*B36 -> 38.6 | G36: =0.072*B36 -> 7.2 | H36: 979.7112
A37: aquarius | B37: 1 | C37: kblk | D37: =95*B37 -> 95 | E37: 0 | F37: =23.7*B37 -> 23.7 | G37: 0 | H37: 397.746
A38: artisjok | B38: 100 | C38: g | D38: =0.59*B38 -> 59 | E38: =0.024*B38 -> 2.4 | F38: =0.122*B38 -> 12.2 | G38: =0.001*B38 -> 0.1 | H38: 247.0212
A39: asperges | B39: 100 | C39: g | D39: =0.16*B39 -> 16 | E39: =0.01*B39 -> 1 | F39: =0.03*B39 -> 3 | G39: 0 | H39: 66.9888
A40: atjar tjampoer | B40: 100 | C40: g | D40: =0.24*B40 -> 24 | E40: =0.01*B40 -> 1 | F40: =0.05*B40 -> 5 | G40: 0 | H40: 100.4832
A41: aubergine | B41: 100 | C41: g | D41: =0.24*B41 -> 24 | E41: =0.01*B41 -> 1 | F41: =0.05*B41 -> 5 | G41: 0 | H41: 100.4832
A42: augurken | B42: 100 | C42: g | D42: =0.18*B42 -> 18 | E42: =0.009*B42 -> 0.9 | F42: =0.036*B42 -> 3.6 | G42: 0 | H42: 75.3624
A43: avocado | B43: 1 | C43: st | D43: =226*B43 -> 226 | E43: =4*B43 -> 4 | F43: =12*B43 -> 12 | G43: =18*B43 -> 18 | H43: 946.2168
A44: azijn - cider | B44: 100 | C44: g | D44: =0.14*B44 -> 14 | E44: =0*B44 -> 0 | F44: =0.059*B44 -> 5.9 | G44: =0*B44 -> 0 | H44: 58.6152
A45: azijn - natuur | B45: 100 | C45: g | D45: =0*B45 -> 0 | E45: =0*B45 -> 0 | F45: =0*B45 -> 0 | G45: =0*B45 -> 0 | H45: 0
A46: babi pangang | B46: 100 | C46: g | D46: =2.17*B46 -> 217 | E46: =0.136*B46 -> 13.6 | F46: =0.039*B46 -> 3.9 | G46: =0.164*B46 -> 16.4 | H46: =D46*4.1868 -> 908.5356
A47: babybel bonbel | B47: 100 | C47: g | D47: =3.14*B47 -> 314 | E47: =0.226*B47 -> 22.6 | F47: =0.001*B47 -> 0.1 | G47: =0.248*B47 -> 24.8 | H47: 1314.6552
A48: bacon | B48: 100 | C48: g | D48: =4.3*B48 -> 430 | E48: =0.13*B48 -> 13 | F48: =0*B48 -> 0 | G48: =0.42*B48 -> 42 | H48: 1800.324
A49: bak- en braadvet | B49: 100 | C49: g | D49: =8.76*B49 -> 876 | E49: =0.003*B49 -> 0.3 | F49: 0 | G49: =0.973*B49 -> 97.3 | H49: 3667.6368
A50: bakbokking | B50: 100 | C50: g | D50: =3.34*B50 -> 334 | E50: =0.216*B50 -> 21.6 | F50: =0.03*B50 -> 3 | G50: =0.262*B50 -> 26.2 | H50: 1398.3912
A51: baklava | B51: 100 | C51: g | D51: =4.35*B51 -> 435 | E51: =0.042*B51 -> 4.2 | F51: =0.537*B51 -> 53.7 | G51: =0.227*B51 -> 22.7 | H51: 1821.258
A52: balisto | B52: 1 | C52: st | D52: =223*B52 -> 223 | E52: =4*B52 -> 4 | F52: =27*B52 -> 27 | G52: =11*B52 -> 11 | H52: 933.6564
A53: bambix | B53: 100 | C53: g | D53: =3.44*B53 -> 344 | E53: =0.095*B53 -> 9.5 | F53: =0.72*B53 -> 72 | G53: =0.02*B53 -> 2 | H53: 1440.2592
A54: bamboespruiten | B54: 100 | C54: g | D54: =0.32*B54 -> 32 | E54: =0.02*B54 -> 2 | F54: =0.06*B54 -> 6 | G54: 0 | H54: 133.9776
A55: bami goreng | B55: 100 | C55: g | D55: =1.45*B55 -> 145 | E55: =0.06*B55 -> 6 | F55: =0.19*B55 -> 19 | G55: =0.05*B55 -> 5 | H55: 607.086
A56: bamibal | B56: 100 | C56: g | D56: =2.74*B56 -> 274 | E56: =0.07*B56 -> 7 | F56: =0.3*B56 -> 30 | G56: =0.14*B56 -> 14 | H56: 1147.1832
A57: banaan | B57: 1 | C57: st | D57: =124*B57 -> 124 | E57: =1*B57 -> 1 | F57: =30*B57 -> 30 | G57: 0 | H57: 519.1632
A58: banketbakkersroom | B58: 100 | C58: g | D58: =1.45*B58 -> 145 | E58: =0.039*B58 -> 3.9 | F58: =0.232*B58 -> 23.2 | G58: =0.041*B58 -> 4.1 | H58: 607.086
A59: banketstaaf | B59: 100 | C59: g | D59: =4.62*B59 -> 462 | E59: =0.076*B59 -> 7.6 | F59: =0.43*B59 -> 43 | G59: =0.289*B59 -> 28.9 | H59: 1934.3016
A60: barbecuesaus | B60: 100 | C60: g | D60: =0.92*B60 -> 92 | E60: =0.01*B60 -> 1 | F60: =0.22*B60 -> 22 | G60: 0 | H60: 385.1856
A61: basterdsuiker | B61: 100 | C61: g | D61: =3.8*B61 -> 380 | E61: 0 | F61: =0.95*B61 -> 95 | G61: 0 | H61: 1590.984
A62: bayonne-ham | B62: 100 | C62: g | D62: =2.59*B62 -> 259 | E62: =0.24*B62 -> 24 | F62: =0.002*B62 -> 0.2 | G62: =0.18*B62 -> 18 | H62: 1084.3812
A63: berehap. bereklauw | B63: 100 | C63: g | D63: =2.52*B63 -> 252 | E63: =0.097*B63 -> 9.7 | F63: =0.094*B63 -> 9.4 | G63: =0.195*B63 -> 19.5 | H63: 1055.0736
A64: berlinerbol | B64: 100 | C64: g | D64: =3.86*B64 -> 386 | E64: =0.055*B64 -> 5.5 | F64: =0.391*B64 -> 39.1 | G64: =0.231*B64 -> 23.1 | H64: 1616.1048
A65: beschuit | B65: 100 | C65: g | D65: =3.79*B65 -> 379 | E65: =0.099*B65 -> 9.9 | F65: =0.755*B65 -> 75.5 | G65: =0.042*B65 -> 4.2 | H65: 1586.7972
A66: bichoc delacre | B66: 100 | C66: g | D66: =4.65*B66 -> 465 | E66: =0.053*B66 -> 5.3 | F66: =0.725*B66 -> 72.5 | G66: =0.171*B66 -> 17.1 | H66: 1946.862
A67: bieflap | B67: 100 | C67: g | D67: =1.68*B67 -> 168 | E67: =0.278*B67 -> 27.8 | F67: =0.008*B67 -> 0.8 | G67: =0.06*B67 -> 6 | H67: 703.3824
A68: biefstuk | B68: 100 | C68: g | D68: =1.15*B68 -> 115 | E68: =0.22*B68 -> 22 | F68: =0*B68 -> 0 | G68: =0.03*B68 -> 3 | H68: 481.482
A69: bier Belle-vue Gueuse | B69: 1 | C69: fl | D69: =125*B69 -> 125 | E69: =0*B69 -> 0 | F69: =0*B69 -> 0 | G69: =0*B69 -> 0 | H69: 523.35
A70: bierworstje. bifiworstje | B70: 100 | C70: g | D70: =4.02*B70 -> 402 | E70: =0.191*B70 -> 19.1 | F70: =0.009*B70 -> 0.9 | G70: =0.358*B70 -> 35.8 | H70: 1683.0936
A71: bieslook | B71: 100 | C71: g | D71: =0.57*B71 -> 57 | E71: =0.04*B71 -> 4 | F71: =0.08*B71 -> 8 | G71: =0.01*B71 -> 1 | H71: 238.6476
A72: bieten | B72: 100 | C72: g | D72: =0.2*B72 -> 20 | E72: =0.02*B72 -> 2 | F72: =0.03*B72 -> 3 | G72: 0 | H72: 83.736
A73: big mac (mcdonalds) | B73: 1 | C73: st | D73: =505*B73 -> 505 | E73: =25.7*B73 -> 25.7 | F73: =43.4*B73 -> 43.4 | G73: =25.4*B73 -> 25.4 | H73: 2114.334
A74: biogarde (halfvol) | B74: 100 | C74: g | D74: =0.5*B74 -> 50 | E74: =0.043*B74 -> 4.3 | F74: =0.047*B74 -> 4.7 | G74: =0.015*B74 -> 1.5 | H74: 209.34
A75: biogarde mager | B75: 100 | C75: g | D75: =0.33*B75 -> 33 | E75: =0.04*B75 -> 4 | F75: =0.04*B75 -> 4 | G75: =0.001*B75 -> 0.1 | H75: 138.1644
A76: biogarde natuur | B76: 100 | C76: g | D76: =0.57*B76 -> 57 | E76: =0.046*B76 -> 4.6 | F76: =0.063*B76 -> 6.3 | G76: =0.015*B76 -> 1.5 | H76: 238.6476
A77: biogarde vol | B77: 100 | C77: g | D77: =0.56*B77 -> 56 | E77: =0.034*B77 -> 3.4 | F77: =0.035*B77 -> 3.5 | G77: =0.032*B77 -> 3.2 | H77: 234.4608
A78: bisc & bounty | B78: 100 | C78: g | D78: =5.39*B78 -> 539 | E78: =0.049*B78 -> 4.9 | F78: =0.559*B78 -> 55.9 | G78: =0.329*B78 -> 32.9 | H78: 2256.6852
A79: bisc & mars | B79: 100 | C79: g | D79: =5.23*B79 -> 523 | E79: =0.053*B79 -> 5.3 | F79: =0.614*B79 -> 61.4 | G79: =0.285*B79 -> 28.5 | H79: 2189.6964
A80: bisc & snickers | B80: 100 | C80: g | D80: =5.36*B80 -> 536 | E80: =0.078*B80 -> 7.8 | F80: =0.53*B80 -> 53 | G80: =0.325*B80 -> 32.5 | H80: 2244.1248
A81: bisc & twix | B81: 100 | C81: g | D81: =5.18*B81 -> 518 | E81: =0.054*B81 -> 5.4 | F81: =0.616*B81 -> 61.6 | G81: =0.278*B81 -> 27.8 | H81: 2168.7624
A82: biscuitje (groot) | B82: 100 | C82: g | D82: =4.32*B82 -> 432 | E82: =0.088*B82 -> 8.8 | F82: =0.767*B82 -> 76.7 | G82: =0.101*B82 -> 10.1 | H82: 1808.6976
A83: bitterbal | B83: 100 | C83: g | D83: =2.32*B83 -> 232 | E83: =0.107*B83 -> 10.7 | F83: =0.169*B83 -> 16.9 | G83: =0.136*B83 -> 13.6 | H83: 971.3376
A84: bizonsteak | B84: 100 | C84: g | D84: =1.01*B84 -> 101 | E84: =0.23*B84 -> 23 | F84: =0*B84 -> 0 | G84: =0.01*B84 -> 1 | H84: 422.8668
A85: bladerdeeg | B85: 100 | C85: g | D85: =3.9*B85 -> 390 | E85: =0.07*B85 -> 7 | F85: =0.41*B85 -> 41 | G85: =0.22*B85 -> 22 | H85: 1632.852
A86: bleekselderij | B86: 100 | C86: g | D86: =0.24*B86 -> 24 | E86: =0.02*B86 -> 2 | F86: =0.04*B86 -> 4 | G86: 0 | H86: 100.4832
A87: blinde vink | B87: 100 | C87: g | D87: =1.89*B87 -> 189 | E87: =0.256*B87 -> 25.6 | F87: =0.012*B87 -> 1.2 | G87: =0.091*B87 -> 9.1 | H87: 791.3052
A88: bloem | B88: 100 | C88: g | D88: =3.33*B88 -> 333 | E88: =0.11*B88 -> 11 | F88: =0.7*B88 -> 70 | G88: =0.01*B88 -> 1 | H88: 1394.2044
A89: bloemkool | B89: 100 | C89: g | D89: =0.2*B89 -> 20 | E89: =0.02*B89 -> 2 | F89: =0.03*B89 -> 3 | G89: 0 | H89: 83.736
A90: blue | B90: 100 | C90: g | D90: =3.53*B90 -> 353 | E90: =0.211*B90 -> 21.1 | F90: =0*B90 -> 0 | G90: =0.298*B90 -> 29.8 | H90: 1477.9404
A91: bluefort | B91: 100 | C91: g | D91: =3.54*B91 -> 354 | E91: =0.2*B91 -> 20 | F91: =0.01*B91 -> 1 | G91: =0.3*B91 -> 30 | H91: 1482.1272
A92: boerenkool | B92: 100 | C92: g | D92: =0.41*B92 -> 41 | E92: =0.04*B92 -> 4 | F92: =0.04*B92 -> 4 | G92: =0.01*B92 -> 1 | H92: 171.6588
A93: boerenkoolstamppot | B93: 100 | C93: g | D93: =0.89*B93 -> 89 | E93: =0.027*B93 -> 2.7 | F93: =0.107*B93 -> 10.7 | G93: =0.039*B93 -> 3.9 | H93: 372.6252
A94: boerenpate | B94: 100 | C94: g | D94: =3.08*B94 -> 308 | E94: =0.15*B94 -> 15 | F94: =0.025*B94 -> 2.5 | G94: =0.264*B94 -> 26.4 | H94: 1289.5344
A95: bokkepoot | B95: 100 | C95: g | D95: =4.46*B95 -> 446 | E95: =0.16*B95 -> 16 | F95: =0.55*B95 -> 55 | G95: =0.18*B95 -> 18 | H95: 1867.3128
A96: bokking. gerookt | B96: 100 | C96: g | D96: =2.36*B96 -> 236 | E96: =0.23*B96 -> 23 | F96: 0 | G96: =0.16*B96 -> 16 | H96: 988.0848
A97: bokking. gestoomd | B97: 100 | C97: g | D97: =2.33*B97 -> 233 | E97: =0.212*B97 -> 21.2 | F97: =0.005*B97 -> 0.5 | G97: =0.162*B97 -> 16.2 | H97: 975.5244
A98: bonbon | B98: 100 | C98: g | D98: =4.09*B98 -> 409 | E98: =0.045*B98 -> 4.5 | F98: =0.628*B98 -> 62.8 | G98: =0.156*B98 -> 15.6 | H98: 1712.4012
A99: bonbon (met likeur) | B99: 100 | C99: g | D99: =3.51*B99 -> 351 | E99: =0.03*B99 -> 3 | F99: =0.422*B99 -> 42.2 | G99: =0.189*B99 -> 18.9 | H99: 1469.5668
A100: bonen | B100: 100 | C100: g | D100: =2.66*B100 -> 266 | E100: =0.2*B100 -> 20 | F100: =0.43*B100 -> 43 | G100: =0.015*B100 -> 1.5 | H100: 1113.6888
A101: borrelnootjes | B101: 100 | C101: g | D101: =5.18*B101 -> 518 | E101: =0.15*B101 -> 15 | F101: =0.45*B101 -> 45 | G101: =0.31*B101 -> 31 | H101: 2168.7624
A102: borstplaat. room- | B102: 100 | C102: g | D102: =3.28*B102 -> 328 | E102: =0.008*B102 -> 0.8 | F102: =0.722*B102 -> 72.2 | G102: =0.041*B102 -> 4.1 | H102: 1373.2704
A103: borstplaat. water- | B103: 100 | C103: g | D103: =3.8*B103 -> 380 | E103: 0 | F103: =0.95*B103 -> 95 | G103: 0 | H103: 1590.984
A104: bosbessen | B104: 100 | C104: g | D104: =0.35*B104 -> 35 | E104: =0.003*B104 -> 0.3 | F104: =0.074*B104 -> 7.4 | G104: =0.005*B104 -> 0.5 | H104: 146.538
A105: bosbessen op siroop | B105: 100 | C105: g | D105: =1.28*B105 -> 128 | E105: =0.01*B105 -> 1 | F105: =0.31*B105 -> 31 | G105: 0 | H105: 535.9104
A106: bossche bol | B106: 100 | C106: g | D106: =3.49*B106 -> 349 | E106: =0.045*B106 -> 4.5 | F106: =0.21*B106 -> 21 | G106: =0.274*B106 -> 27.4 | H106: 1461.1932
A107: boter | B107: 10 | C107: g | D107: =7.5*B107 -> 75 | E107: =0.01*B107 -> 0.1 | F107: =0.01*B107 -> 0.1 | G107: =0.82*B107 -> 8.2 | H107: 314.01
A108: boter (gezouten) | B108: 100 | C108: g | D108: =7.61*B108 -> 761 | E108: =0.009*B108 -> 0.9 | F108: 0 | G108: =0.842*B108 -> 84.2 | H108: 3186.1548
A109: boter. halfvol | B109: 100 | C109: g | D109: =3.9*B109 -> 390 | E109: =0.063*B109 -> 6.3 | F109: =0.003*B109 -> 0.3 | G109: =0.405*B109 -> 40.5 | H109: 1632.852
A110: boter. ongezouten | B110: 100 | C110: g | D110: =7.63*B110 -> 763 | E110: =0.042*B110 -> 4.2 | F110: =0.011*B110 -> 1.1 | G110: =0.825*B110 -> 82.5 | H110: =D110*4.1868 -> 3194.5284
A111: boterham, volkoren | B111: 1 | C111: st | D111: =76*B111 -> 76 | E111: =3*B111 -> 3 | F111: =13.5*B111 -> 13.5 | G111: =1*B111 -> 1 | H111: 318.1968
A112: boterhamworst | B112: 100 | C112: g | D112: =3.35*B112 -> 335 | E112: =0.12*B112 -> 12 | F112: =0.04*B112 -> 4 | G112: =0.3*B112 -> 30 | H112: 1402.578
A113: boterkoek | B113: 100 | C113: g | D113: =5.15*B113 -> 515 | E113: =0.04*B113 -> 4 | F113: =0.55*B113 -> 55 | G113: =0.31*B113 -> 31 | H113: 2156.202
A114: boterletter | B114: 100 | C114: g | D114: =4.61*B114 -> 461 | E114: =0.076*B114 -> 7.6 | F114: =0.43*B114 -> 43 | G114: =0.289*B114 -> 28.9 | H114: 1930.1148
A115: boudoir | B115: 100 | C115: g | D115: =3.95*B115 -> 395 | E115: =0.074*B115 -> 7.4 | F115: =0.84*B115 -> 84 | G115: =0.033*B115 -> 3.3 | H115: 1653.786
A116: bounty | B116: 1 | C116: st | D116: =243*B116 -> 243 | E116: =3*B116 -> 3 | F116: =24*B116 -> 24 | G116: =15*B116 -> 15 | H116: 1017.3924
A117: boursin | B117: 100 | C117: g | D117: =4.18*B117 -> 418 | E117: =0.1*B117 -> 10 | F117: =0.01*B117 -> 1 | G117: =0.415*B117 -> 41.5 | H117: 1750.0824
A118: braadharing | B118: 100 | C118: g | D118: =2.19*B118 -> 219 | E118: =0.17*B118 -> 17 | F118: =0.04*B118 -> 4 | G118: =0.15*B118 -> 15 | H118: 916.9092
A119: braadworst. varkens- | B119: 100 | C119: g | D119: =3.08*B119 -> 308 | E119: =0.222*B119 -> 22.2 | F119: =0.009*B119 -> 0.9 | G119: =0.24*B119 -> 24 | H119: 1289.5344
A120: braambessen | B120: 100 | C120: g | D120: =0.38*B120 -> 38 | E120: =0.012*B120 -> 1.2 | F120: =0.072*B120 -> 7.2 | G120: =0.005*B120 -> 0.5 | H120: 159.0984
A121: brado | B121: 100 | C121: g | D121: =2.36*B121 -> 236 | E121: =0.23*B121 -> 23 | F121: 0 | G121: =0.16*B121 -> 16 | H121: 988.0848
A122: bramen | B122: 100 | C122: g | D122: =0.37*B122 -> 37 | E122: =0.01*B122 -> 1 | F122: =0.06*B122 -> 6 | G122: =0.01*B122 -> 1 | H122: 154.9116
A123: bran buds | B123: 100 | C123: g | D123: =1*B123 -> 100 | E123: =0.036*B123 -> 3.6 | F123: =0.189*B123 -> 18.9 | G123: =0.0107142857142857*B123 -> 1.071428571 | H123: 418.68
A124: bressot | B124: 100 | C124: g | D124: =3.32*B124 -> 332 | E124: =0.085*B124 -> 8.5 | F124: =0.01*B124 -> 1 | G124: =0.327*B124 -> 32.7 | H124: 1390.0176
A125: brie ( 50+ ) | B125: 100 | C125: g | D125: =3.17*B125 -> 317 | E125: =0.22*B125 -> 22 | F125: =0.01*B125 -> 1 | G125: =0.25*B125 -> 25 | H125: 1327.2156
A126: brie ( 60+ ) | B126: 100 | C126: g | D126: =3.65*B126 -> 365 | E126: =0.17*B126 -> 17 | F126: 0 | G126: =0.33*B126 -> 33 | H126: 1528.182
A127: brinta | B127: 100 | C127: g | D127: =3.66*B127 -> 366 | E127: =0.12*B127 -> 12 | F127: =0.74*B127 -> 74 | G127: =0.025*B127 -> 2.5 | H127: 1532.3688
A128: broccoli | B128: 100 | C128: g | D128: =0.2*B128 -> 20 | E128: =0.02*B128 -> 2 | F128: =0.03*B128 -> 3 | G128: 0 | H128: 83.736
A129: brood (volkoren) | B129: 100 | C129: g | D129: =2.08*B129 -> 208 | E129: =0.057*B129 -> 5.7 | F129: =0.4*B129 -> 40 | G129: =0.028*B129 -> 2.8 | H129: 870.8544
A130: brood (wit) | B130: 100 | C130: g | D130: =2.26*B130 -> 226 | E130: =0.065*B130 -> 6.5 | F130: =0.5*B130 -> 50 | G130: 0 | H130: 946.2168
A131: brood. gemiddeld | B131: 100 | C131: g | D131: =2.4*B131 -> 240 | E131: =0.087*B131 -> 8.7 | F131: =0.458*B131 -> 45.8 | G131: =0.025*B131 -> 2.5 | H131: 1004.832
A132: broodje | B132: 1 | C132: st | D132: =104*B132 -> 104 | E132: =3*B132 -> 3 | F132: =23*B132 -> 23 | G132: 0 | H132: 435.4272
A133: broodje. bruin | B133: 100 | C133: g | D133: =2.5*B133 -> 250 | E133: =0.095*B133 -> 9.5 | F133: =0.451*B133 -> 45.1 | G133: =0.035*B133 -> 3.5 | H133: 1046.7
A134: broodje. gemiddeld | B134: 100 | C134: g | D134: =2.4*B134 -> 240 | E134: =0.087*B134 -> 8.7 | F134: =0.458*B134 -> 45.8 | G134: =0.025*B134 -> 2.5 | H134: 1004.832
A135: broodje. luxe wit | B135: 100 | C135: g | D135: =2.94*B135 -> 294 | E135: =0.093*B135 -> 9.3 | F135: =0.531*B135 -> 53.1 | G135: =0.05*B135 -> 5 | H135: 1230.9192
A136: broodje. meergranen | B136: 100 | C136: g | D136: =2.12*B136 -> 212 | E136: =0.084*B136 -> 8.4 | F136: =0.405*B136 -> 40.5 | G136: =0.018*B136 -> 1.8 | H136: 887.6016
A137: broodje. muesli- | B137: 100 | C137: g | D137: =2.73*B137 -> 273 | E137: =0.081*B137 -> 8.1 | F137: =0.523*B137 -> 52.3 | G137: =0.035*B137 -> 3.5 | H137: 1142.9964
A138: broodje. tarwe | B138: 100 | C138: g | D138: =2.5*B138 -> 250 | E138: =0.095*B138 -> 9.5 | F138: =0.451*B138 -> 45.1 | G138: =0.035*B138 -> 3.5 | H138: 1046.7
A139: broodje. volkoren | B139: 100 | C139: g | D139: =2.11*B139 -> 211 | E139: =0.084*B139 -> 8.4 | F139: =0.405*B139 -> 40.5 | G139: =0.018*B139 -> 1.8 | H139: 883.4148
A140: broodje. wit | B140: 100 | C140: g | D140: =2.59*B140 -> 259 | E140: =0.081*B140 -> 8.1 | F140: =0.52*B140 -> 52 | G140: =0.021*B140 -> 2.1 | H140: 1084.3812
A141: bruinbrood | B141: 100 | C141: g | D141: =2.5*B141 -> 250 | E141: =0.095*B141 -> 9.5 | F141: =0.451*B141 -> 45.1 | G141: =0.035*B141 -> 3.5 | H141: 1046.7
A142: bruine bonensoep | B142: 100 | C142: g | D142: =0.46*B142 -> 46 | E142: =0.035*B142 -> 3.5 | F142: =0.075*B142 -> 7.5 | G142: =0.003*B142 -> 0.3 | H142: 192.5928
A143: bulgaarse yoghurt (fruit) | B143: 100 | C143: g | D143: =1.24*B143 -> 124 | E143: =0.05*B143 -> 5 | F143: =0.17*B143 -> 17 | G143: =0.04*B143 -> 4 | H143: 519.1632
A144: bulgaarse yoghurt (mager) | B144: 100 | C144: g | D144: =0.48*B144 -> 48 | E144: =0.05*B144 -> 5 | F144: =0.06*B144 -> 6 | G144: =0.005*B144 -> 0.5 | H144: 200.9664
A145: bulgaarse yoghurt (vol) | B145: 100 | C145: g | D145: =0.89*B145 -> 89 | E145: =0.048*B145 -> 4.8 | F145: =0.07*B145 -> 7 | G145: =0.047*B145 -> 4.7 | H145: 372.6252
A146: cake | B146: 100 | C146: g | D146: =4.46*B146 -> 446 | E146: =0.069*B146 -> 6.9 | F146: =0.448*B146 -> 44.8 | G146: =0.266*B146 -> 26.6 | H146: 1867.3128
A147: camembert 45% | B147: 100 | C147: g | D147: =2.84*B147 -> 284 | E147: =0.25*B147 -> 25 | F147: =0.01*B147 -> 1 | G147: =0.2*B147 -> 20 | H147: 1189.0512
A148: camembert 50% | B148: 100 | C148: g | D148: =3.14*B148 -> 314 | E148: =0.18*B148 -> 18 | F148: =0.02*B148 -> 2 | G148: =0.26*B148 -> 26 | H148: 1314.6552
A149: candybar. groot | B149: 100 | C149: g | D149: =4.78*B149 -> 478 | E149: =0.059*B149 -> 5.9 | F149: =0.632*B149 -> 63.2 | G149: =0.224*B149 -> 22.4 | H149: 2001.2904
A150: cantadou | B150: 100 | C150: g | D150: =3.28*B150 -> 328 | E150: =0.06*B150 -> 6 | F150: =0.035*B150 -> 3.5 | G150: =0.323*B150 -> 32.3 | H150: 1373.2704
A151: carre confiture | B151: 100 | C151: g | D151: =4.01*B151 -> 401 | E151: =0.034*B151 -> 3.4 | F151: =0.5*B151 -> 50 | G151: =0.208*B151 -> 20.8 | H151: 1678.9068
A152: cashew-noten | B152: 100 | C152: g | D152: =5.78*B152 -> 578 | E152: =0.18*B152 -> 18 | F152: =0.32*B152 -> 32 | G152: =0.42*B152 -> 42 | H152: 2419.9704
A153: casselerrib | B153: 100 | C153: g | D153: =1.83*B153 -> 183 | E153: =0.18*B153 -> 18 | F153: =0.03*B153 -> 3 | G153: =0.11*B153 -> 11 | H153: 766.1844
A154: cervela | B154: 100 | C154: g | D154: =3.87*B154 -> 387 | E154: =0.18*B154 -> 18 | F154: 0 | G154: =0.35*B154 -> 35 | H154: 1620.2916
A155: champignons | B155: 100 | C155: g | D155: =0.16*B155 -> 16 | E155: =0.03*B155 -> 3 | F155: =0.01*B155 -> 1 | G155: 0 | H155: 66.9888
A156: chavroux | B156: 100 | C156: g | D156: =1.73*B156 -> 173 | E156: =0.1*B156 -> 10 | F156: =0.04*B156 -> 4 | G156: =0.13*B156 -> 13 | H156: 724.3164
A157: cheddar | B157: 100 | C157: g | D157: =4.01*B157 -> 401 | E157: =0.26*B157 -> 26 | F157: =0*B157 -> 0 | G157: =0.33*B157 -> 33 | H157: 1678.9068
A158: cheeseburger | B158: 100 | C158: g | D158: =2.63*B158 -> 263 | E158: =0.15*B158 -> 15 | F158: =0.185*B158 -> 18.5 | G158: =0.143*B158 -> 14.3 | H158: 1101.1284
A159: cheeseburger (mcdonalds) | B159: 1 | C159: st | D159: =298*B159 -> 298 | E159: =15.5*B159 -> 15.5 | F159: =32*B159 -> 32 | G159: =12*B159 -> 12 | H159: 1247.6664
A160: chili con carne | B160: 100 | C160: g | D160: =1.45*B160 -> 145 | E160: =0.087*B160 -> 8.7 | F160: =0.08*B160 -> 8 | G160: =0.087*B160 -> 8.7 | H160: 607.086
A161: chinese kool | B161: 100 | C161: g | D161: =0.12*B161 -> 12 | E161: =0.012*B161 -> 1.2 | F161: =0.012*B161 -> 1.2 | G161: =0.003*B161 -> 0.3 | H161: 50.2416
A162: chipolatapudding | B162: 100 | C162: g | D162: =2.25*B162 -> 225 | E162: =0.043*B162 -> 4.3 | F162: =0.241*B162 -> 24.1 | G162: =0.124*B162 -> 12.4 | H162: 942.03
A163: chips (light) | B163: 100 | C163: g | D163: =5.02*B163 -> 502 | E163: =0.06*B163 -> 6 | F163: =0.61*B163 -> 61 | G163: =0.26*B163 -> 26 | H163: 2101.7736
A164: chips (naturel) | B164: 100 | C164: g | D164: =5.44*B164 -> 544 | E164: =0.06*B164 -> 6 | F164: =0.49*B164 -> 49 | G164: =0.36*B164 -> 36 | H164: 2277.6192
A165: choco - puur (kwatta) | B165: 100 | C165: g | D165: =5.67*B165 -> 567 | E165: =0.039*B165 -> 3.9 | F165: =0.511*B165 -> 51.1 | G165: =0.386*B165 -> 38.6 | H165: 2373.9156
A166: chocolade (melk) | B166: 100 | C166: g | D166: =5.18*B166 -> 518 | E166: =0.066*B166 -> 6.6 | F166: =0.547*B166 -> 54.7 | G166: =0.303*B166 -> 30.3 | H166: 2168.7624
A167: chocolade (melk) | B167: 100 | C167: g | D167: =5.28*B167 -> 528 | E167: =0.08*B167 -> 8 | F167: =0.52*B167 -> 52 | G167: =0.32*B167 -> 32 | H167: 2210.6304
A168: chocolade (met noten) | B168: 100 | C168: g | D168: =6.08*B168 -> 608 | E168: =0.103*B168 -> 10.3 | F168: =0.3*B168 -> 30 | G168: =0.496*B168 -> 49.6 | H168: 2545.5744
A169: chocolade (puur) | B169: 100 | C169: g | D169: =5.07*B169 -> 507 | E169: =0.05*B169 -> 5 | F169: =0.51*B169 -> 51 | G169: =0.315*B169 -> 31.5 | H169: 2122.7076
A170: chocolade (puur) | B170: 100 | C170: g | D170: =5.12*B170 -> 512 | E170: =0.04*B170 -> 4 | F170: =0.52*B170 -> 52 | G170: =0.32*B170 -> 32 | H170: 2143.6416
A171: chocoladebiscuit | B171: 100 | C171: g | D171: =4.7*B171 -> 470 | E171: =0.069*B171 -> 6.9 | F171: =0.638*B171 -> 63.8 | G171: =0.208*B171 -> 20.8 | H171: 1967.796
A172: chocoladehagelslag | B172: 100 | C172: g | D172: =4.31*B172 -> 431 | E172: =0.061*B172 -> 6.1 | F172: =0.636*B172 -> 63.6 | G172: =0.169*B172 -> 16.9 | H172: 1804.5108
A173: chocoladekorrels | B173: 100 | C173: g | D173: =4.37*B173 -> 437 | E173: =0.065*B173 -> 6.5 | F173: =0.635*B173 -> 63.5 | G173: =0.175*B173 -> 17.5 | H173: 1829.6316
A174: chocolademelk (halfvol) | B174: 100 | C174: g | D174: =0.84*B174 -> 84 | E174: =0.037*B174 -> 3.7 | F174: =0.133*B174 -> 13.3 | G174: =0.018*B174 -> 1.8 | H174: =D174*4.1868 -> 351.6912
A175: chocolademelk (mager) | B175: 100 | C175: g | D175: =0.58*B175 -> 58 | E175: =0.036*B175 -> 3.6 | F175: =0.104*B175 -> 10.4 | G175: =0.003*B175 -> 0.3 | H175: 242.8344
A176: chocolademelk (vol) | B176: 100 | C176: g | D176: =0.79*B176 -> 79 | E176: =0.034*B176 -> 3.4 | F176: =0.111*B176 -> 11.1 | G176: =0.024*B176 -> 2.4 | H176: 330.7572
A177: chocolademousse | B177: 100 | C177: g | D177: =2.52*B177 -> 252 | E177: =0.025*B177 -> 2.5 | F177: =0.263*B177 -> 26.3 | G177: =0.152*B177 -> 15.2 | H177: 1055.0736
A178: chocoladepasta | B178: 100 | C178: g | D178: =5.78*B178 -> 578 | E178: =0.03*B178 -> 3 | F178: =0.56*B178 -> 56 | G178: =0.38*B178 -> 38 | H178: 2419.9704
A179: chocoladepudding | B179: 100 | C179: g | D179: =1.25*B179 -> 125 | E179: =0.04*B179 -> 4 | F179: =0.2*B179 -> 20 | G179: =0.032*B179 -> 3.2 | H179: 523.35
A180: chocoladesaus | B180: 100 | C180: g | D180: =2.54*B180 -> 254 | E180: =0.02*B180 -> 2 | F180: =0.57*B180 -> 57 | G180: =0.02*B180 -> 2 | H180: 1063.4472
A181: chocoladevla (mager) | B181: 100 | C181: g | D181: =0.77*B181 -> 77 | E181: =0.033*B181 -> 3.3 | F181: =0.155*B181 -> 15.5 | G181: =0.002*B181 -> 0.2 | H181: 322.3836
A182: chocoladevla (vol) | B182: 100 | C182: g | D182: =0.86*B182 -> 86 | E182: =0.033*B182 -> 3.3 | F182: =0.125*B182 -> 12.5 | G182: =0.026*B182 -> 2.6 | H182: 360.0648
A183: chocoladevlokken (melk) | B183: 100 | C183: g | D183: =4.46*B183 -> 446 | E183: =0.08*B183 -> 8 | F183: =0.63*B183 -> 63 | G183: =0.18*B183 -> 18 | H183: 1867.3128
A184: chocoladevlokken (puur) | B184: 100 | C184: g | D184: =4.29*B184 -> 429 | E184: =0.05*B184 -> 5 | F184: =0.64*B184 -> 64 | G184: =0.17*B184 -> 17 | H184: 1796.1372
A185: chocomousse danone | B185: 100 | C185: g | D185: =0.91*B185 -> 91 | E185: =0.021*B185 -> 2.1 | F185: =0.122*B185 -> 12.2 | G185: =0.037*B185 -> 3.7 | H185: 380.9988
A186: chocoprince | B186: 100 | C186: g | D186: =4.82*B186 -> 482 | E186: =0.056*B186 -> 5.6 | F186: =0.675*B186 -> 67.5 | G186: =0.211*B186 -> 21.1 | H186: 2018.0376
A187: citroen | B187: 1 | C187: st | D187: =10*B187 -> 10 | E187: =0*B187 -> 0 | F187: =2.5*B187 -> 2.5 | G187: 0 | H187: 41.868
A188: citroengras | B188: 100 | C188: g | D188: =0.99*B188 -> 99 | E188: =0.018*B188 -> 1.8 | F188: =0.253*B188 -> 25.3 | G188: =0.005*B188 -> 0.5 | H188: 414.4932
A189: citroenrasp | B189: 100 | C189: g | D189: =0.47*B189 -> 47 | E189: =0.015*B189 -> 1.5 | F189: =0.16*B189 -> 16 | G189: =0.003*B189 -> 0.3 | H189: 196.7796
A190: citroensap | B190: 100 | C190: ml | D190: =0.33*B190 -> 33 | E190: =0.004*B190 -> 0.4 | F190: =0.077*B190 -> 7.7 | G190: =0.004*B190 -> 0.4 | H190: 138.1644
A191: cocktailsaus | B191: 100 | C191: g | D191: =2.64*B191 -> 264 | E191: =0.01*B191 -> 1 | F191: =0.11*B191 -> 11 | G191: =0.24*B191 -> 24 | H191: 1105.3152
A192: cognac | B192: 35 | C192: ml | D192: 80 | E192: 0 | F192: 0 | G192: 0 | H192: 334.944
A193: confiture | B193: 100 | C193: g | D193: =2.62*B193 -> 262 | E193: =0.005*B193 -> 0.5 | F193: =0.65*B193 -> 65 | G193: 0 | H193: 1096.9416
A194: corned beef | B194: 100 | C194: g | D194: =2.89*B194 -> 289 | E194: =0.16*B194 -> 16 | F194: 0 | G194: =0.25*B194 -> 25 | H194: 1209.9852
A195: cornetto | B195: 1 | C195: st | D195: =262*B195 -> 262 | E195: =3.5*B195 -> 3.5 | F195: =26*B195 -> 26 | G195: =16*B195 -> 16 | H195: 1096.9416
A196: cornflakes | B196: 100 | C196: g | D196: =3.81*B196 -> 381 | E196: =0.085*B196 -> 8.5 | F196: =0.84*B196 -> 84 | G196: =0.012*B196 -> 1.2 | H196: 1595.1708
A197: cottage cheese | B197: 100 | C197: g | D197: =0.93*B197 -> 93 | E197: =0.112*B197 -> 11.2 | F197: =0.032*B197 -> 3.2 | G197: =0.039*B197 -> 3.9 | H197: 389.3724
A198: courgette | B198: 100 | C198: g | D198: =0.06*B198 -> 6 | E198: =0.005*B198 -> 0.5 | F198: =0.01*B198 -> 1 | G198: 0 | H198: 25.1208
A199: couscous | B199: 100 | C199: g | D199: =1.33*B199 -> 133 | E199: =0.044*B199 -> 4.4 | F199: =0.28*B199 -> 28 | G199: =0.004*B199 -> 0.4 | H199: 556.8444
A200: cracotte | B200: 100 | C200: g | D200: =4.77*B200 -> 477 | E200: =0.11*B200 -> 11 | F200: =0.97*B200 -> 97 | G200: =0.05*B200 -> 5 | H200: 1997.1036
... 792 more rows

Sheet Recept
A1: Uw huidig gewicht : | B1: 82 | C1: kg
A2: Uw lengte: | B2: 188 | C2: cm
A3: Mate aktiviteit: | B3: 2
A4: Uw BMI: | B4: =B1/(B2*B2)*10000 -> 23.20054323 | C4: pnt
A5: U heeft nodig: Kcal | B5: =B6/4.1868 -> 2526.857675 | C5: Kcal
A6: kJ | B6: =B4*(B3/10+1)*380 -> 10579.44771 | C6: kJ | E6: Totaal: | H6: 4 | I6: personen | K6: P.persoon:
A7: eiwit | B7: =B6*0.25/17 -> 155.5801134 | C7: g | E7: Kcal | F7: Eiwit | G7: Koolh. | H7: Vet | I7: kJ | K7: Kcal | L7: Eiwit | M7: Koolh. | N7: Vet | O7: kJ
A8: koolh | B8: =B6*0.55/17 -> 342.2762496 | C8: g | E8: =SUM(K12:K54) -> 0 | F8: =SUM(L12:L54) -> 0 | G8: =SUM(M12:M54) -> 0 | H8: =SUM(N12:N54) -> 0 | I8: =SUM(O12:O54) -> 0 | K8: =E8/$H$6 -> 0 | L8: =F8/$H$6 -> 0 | M8: 0 | N8: 0 | O8: 0
A9: vet | B9: =B6*0.2/38 -> 55.68130376 | C9: g
B10: Calorieëntabel | I10: Recept
A11: Ingredieënt | B11: Eenheid | D11: Kcal | E11: Eiwit | F11: Koolh. | G11: Vet | H11: kJ | I11: Eenheid | K11: Kcal | L11: Eiwit | M11: Koolh. | N11: Vet | O11: kJ
B12: 100 | C12: =IF($A$12="","",VLOOKUP($A$12,CalTab!$A$3:$G$980,3,TRUE)) ->  | D12: =IF($A$12="","",VLOOKUP($A$12,CalTab!$A$3:$H$980,4,TRUE)) ->  | E12: =IF($A$12="","",VLOOKUP($A$12,CalTab!$A$3:$H$980,5,TRUE)) ->  | F12: =IF($A$12="","",VLOOKUP($A$12,CalTab!$A$3:$H$980,6,TRUE)) ->  | G12: =IF($A$12="","",VLOOKUP($A$12,CalTab!$A$3:$H$980,7,TRUE)) ->  | H12: =IF($A$12="","",VLOOKUP($A$12,CalTab!$A$3:$H$980,8,TRUE)) ->  | J12: =IF($A$12="","",VLOOKUP($A$12,CalTab!$A$3:$G$980,3,TRUE)) ->  | K12: =IF($A$12="","",D12*$I$12/$B$12) ->  | L12: =IF($A$12="","",E12*$I$12/$B$12) -> 
B13: =IF($A$13="","",VLOOKUP($A$13,CalTab!$A$3:$G$980,2,TRUE)) ->  | C13: =IF($A$13="","",VLOOKUP($A$13,CalTab!$A$3:$G$980,3,TRUE)) ->  | D13: =IF($A$13="","",VLOOKUP($A$13,CalTab!$A$3:$H$980,4,TRUE)) ->  | E13: =IF($A$13="","",VLOOKUP($A$13,CalTab!$A$3:$H$980,5,TRUE)) ->  | F13: =IF($A$13="","",VLOOKUP($A$13,CalTab!$A$3:$H$980,6,TRUE)) ->  | G13: =IF($A$13="","",VLOOKUP($A$13,CalTab!$A$3:$H$980,7,TRUE)) ->  | H13: =IF($A$13="","",VLOOKUP($A$13,CalTab!$A$3:$H$980,8,TRUE)) ->  | J13: =IF($A$13="","",VLOOKUP($A$13,CalTab!$A$3:$G$980,3,TRUE)) ->  | K13: =IF($A$13="","",D13*$I$13/$B$13) ->  | L13: =IF($A$13="","",VLOOKUP($A$13,CalTab!$A$3:$G$980,5,TRUE)) ->  | M13: =IF($A$13="","",VLOOKUP($A$13,CalTab!$A$3:$G$980,6,TRUE)) ->  | N13: =IF($A$13="","",VLOOKUP($A$13,CalTab!$A$3:$G$980,7,TRUE)) ->  | O13: =IF($A$13="","",H13*$I$13/$B$13) -> 
B14: =IF($A$14="","",VLOOKUP($A$14,CalTab!$A$3:$G$980,2,TRUE)) ->  | C14: =IF($A$14="","",VLOOKUP($A$14,CalTab!$A$3:$G$980,3,TRUE)) ->  | D14: =IF($A$14="","",VLOOKUP($A$14,CalTab!$A$3:$H$980,4,TRUE)) ->  | E14: =IF($A$14="","",VLOOKUP($A$14,CalTab!$A$3:$H$980,5,TRUE)) ->  | F14: =IF($A$14="","",VLOOKUP($A$14,CalTab!$A$3:$H$980,6,TRUE)) ->  | G14: =IF($A$14="","",VLOOKUP($A$14,CalTab!$A$3:$H$980,7,TRUE)) ->  | H14: =IF($A$14="","",VLOOKUP($A$14,CalTab!$A$3:$H$980,8,TRUE)) ->  | J14: =IF($A$14="","",VLOOKUP($A$14,CalTab!$A$3:$G$980,3,TRUE)) ->  | K14: =IF($A$14="","",D14*$I$14/$B$14) ->  | L14: =IF($A$14="","",VLOOKUP($A$14,CalTab!$A$3:$G$980,5,TRUE)) ->  | M14: =IF($A$14="","",VLOOKUP($A$14,CalTab!$A$3:$G$980,6,TRUE)) ->  | N14: =IF($A$14="","",VLOOKUP($A$14,CalTab!$A$3:$G$980,7,TRUE)) ->  | O14: =IF($A$14="","",H14*$I$14/$B$14) -> 
B15: =IF($A$15="","",VLOOKUP($A$15,CalTab!$A$3:$G$980,2,TRUE)) ->  | C15: =IF($A$15="","",VLOOKUP($A$15,CalTab!$A$3:$G$980,3,TRUE)) ->  | D15: =IF($A$15="","",VLOOKUP($A$15,CalTab!$A$3:$H$980,4,TRUE)) ->  | E15: =IF($A$15="","",VLOOKUP($A$15,CalTab!$A$3:$H$980,5,TRUE)) ->  | F15: =IF($A$15="","",VLOOKUP($A$15,CalTab!$A$3:$H$980,6,TRUE)) ->  | G15: =IF($A$15="","",VLOOKUP($A$15,CalTab!$A$3:$H$980,7,TRUE)) ->  | H15: =IF($A$15="","",VLOOKUP($A$15,CalTab!$A$3:$H$980,8,TRUE)) ->  | J15: =IF($A$15="","",VLOOKUP($A$15,CalTab!$A$3:$G$980,3,TRUE)) ->  | K15: =IF($A$15="","",D15*$I$15/$B$15) ->  | L15: =IF($A$15="","",VLOOKUP($A$15,CalTab!$A$3:$G$980,5,TRUE)) ->  | M15: =IF($A$15="","",VLOOKUP($A$15,CalTab!$A$3:$G$980,6,TRUE)) ->  | N15: =IF($A$15="","",VLOOKUP($A$15,CalTab!$A$3:$G$980,7,TRUE)) ->  | O15: =IF($A$15="","",H15*$I$15/$B$15) -> 
B16: =IF($A$16="","",VLOOKUP($A$16,CalTab!$A$3:$G$980,2,TRUE)) ->  | C16: =IF($A$16="","",VLOOKUP($A$16,CalTab!$A$3:$G$980,3,TRUE)) ->  | D16: =IF($A$16="","",VLOOKUP($A$16,CalTab!$A$3:$H$980,4,TRUE)) ->  | E16: =IF($A$16="","",VLOOKUP($A$16,CalTab!$A$3:$H$980,5,TRUE)) ->  | F16: =IF($A$16="","",VLOOKUP($A$16,CalTab!$A$3:$H$980,6,TRUE)) ->  | G16: =IF($A$16="","",VLOOKUP($A$16,CalTab!$A$3:$H$980,7,TRUE)) ->  | H16: =IF($A$16="","",VLOOKUP($A$16,CalTab!$A$3:$H$980,8,TRUE)) ->  | J16: =IF($A$16="","",VLOOKUP($A$16,CalTab!$A$3:$G$980,3,TRUE)) ->  | K16: =IF($A$16="","",D16*$I$16/$B$16) ->  | L16: =IF($A$16="","",VLOOKUP($A$16,CalTab!$A$3:$G$980,5,TRUE)) ->  | M16: =IF($A$16="","",VLOOKUP($A$16,CalTab!$A$3:$G$980,6,TRUE)) ->  | N16: =IF($A$16="","",VLOOKUP($A$16,CalTab!$A$3:$G$980,7,TRUE)) ->  | O16: =IF($A$16="","",H16*$I$16/$B$16) -> 
B17: =IF($A$17="","",VLOOKUP($A$17,CalTab!$A$3:$G$980,2,TRUE)) ->  | C17: =IF($A$17="","",VLOOKUP($A$17,CalTab!$A$3:$G$980,3,TRUE)) ->  | D17: =IF($A$17="","",VLOOKUP($A$17,CalTab!$A$3:$H$980,4,TRUE)) ->  | E17: =IF($A$17="","",VLOOKUP($A$17,CalTab!$A$3:$H$980,5,TRUE)) ->  | F17: =IF($A$17="","",VLOOKUP($A$17,CalTab!$A$3:$H$980,6,TRUE)) ->  | G17: =IF($A$17="","",VLOOKUP($A$17,CalTab!$A$3:$H$980,7,TRUE)) ->  | H17: =IF($A$17="","",VLOOKUP($A$17,CalTab!$A$3:$H$980,8,TRUE)) ->  | J17: =IF($A$17="","",VLOOKUP($A$17,CalTab!$A$3:$G$980,3,TRUE)) ->  | K17: =IF($A$17="","",D17*$I$17/$B$17) ->  | L17: =IF($A$17="","",VLOOKUP($A$17,CalTab!$A$3:$G$980,5,TRUE)) ->  | M17: =IF($A$17="","",VLOOKUP($A$17,CalTab!$A$3:$G$980,6,TRUE)) ->  | N17: =IF($A$17="","",VLOOKUP($A$17,CalTab!$A$3:$G$980,7,TRUE)) ->  | O17: =IF($A$17="","",H17*$I$17/$B$17) -> 
B18: =IF($A$18="","",VLOOKUP($A$18,CalTab!$A$3:$G$980,2,TRUE)) ->  | C18: =IF($A$18="","",VLOOKUP($A$18,CalTab!$A$3:$G$980,3,TRUE)) ->  | D18: =IF($A$18="","",VLOOKUP($A$18,CalTab!$A$3:$H$980,4,TRUE)) ->  | E18: =IF($A$18="","",VLOOKUP($A$18,CalTab!$A$3:$H$980,5,TRUE)) ->  | F18: =IF($A$18="","",VLOOKUP($A$18,CalTab!$A$3:$H$980,6,TRUE)) ->  | G18: =IF($A$18="","",VLOOKUP($A$18,CalTab!$A$3:$H$980,7,TRUE)) ->  | H18: =IF($A$18="","",VLOOKUP($A$18,CalTab!$A$3:$H$980,8,TRUE)) ->  | J18: =IF($A$18="","",VLOOKUP($A$18,CalTab!$A$3:$G$980,3,TRUE)) ->  | K18: =IF($A$18="","",D18*$I$18/$B$18) ->  | L18: =IF($A$18="","",VLOOKUP($A$18,CalTab!$A$3:$G$980,5,TRUE)) ->  | M18: =IF($A$18="","",VLOOKUP($A$18,CalTab!$A$3:$G$980,6,TRUE)) ->  | N18: =IF($A$18="","",VLOOKUP($A$18,CalTab!$A$3:$G$980,7,TRUE)) ->  | O18: =IF($A$18="","",H18*$I$18/$B$18) -> 
B19: =IF($A$19="","",VLOOKUP($A$19,CalTab!$A$3:$G$980,2,TRUE)) ->  | C19: =IF($A$19="","",VLOOKUP($A$19,CalTab!$A$3:$G$980,3,TRUE)) ->  | D19: =IF($A$19="","",VLOOKUP($A$19,CalTab!$A$3:$H$980,4,TRUE)) ->  | E19: =IF($A$19="","",VLOOKUP($A$19,CalTab!$A$3:$H$980,5,TRUE)) ->  | F19: =IF($A$19="","",VLOOKUP($A$19,CalTab!$A$3:$H$980,6,TRUE)) ->  | G19: =IF($A$19="","",VLOOKUP($A$19,CalTab!$A$3:$H$980,7,TRUE)) ->  | H19: =IF($A$19="","",VLOOKUP($A$19,CalTab!$A$3:$H$980,8,TRUE)) ->  | J19: =IF($A$19="","",VLOOKUP($A$19,CalTab!$A$3:$G$980,3,TRUE)) ->  | K19: =IF($A$19="","",D19*$I$19/$B$19) ->  | L19: =IF($A$19="","",VLOOKUP($A$19,CalTab!$A$3:$G$980,5,TRUE)) ->  | M19: =IF($A$19="","",VLOOKUP($A$19,CalTab!$A$3:$G$980,6,TRUE)) ->  | N19: =IF($A$19="","",VLOOKUP($A$19,CalTab!$A$3:$G$980,7,TRUE)) ->  | O19: =IF($A$19="","",H19*$I$19/$B$19) -> 
B20: =IF($A$20="","",VLOOKUP($A$20,CalTab!$A$3:$G$980,2,TRUE)) ->  | C20: =IF($A$20="","",VLOOKUP($A$20,CalTab!$A$3:$G$980,3,TRUE)) ->  | D20: =IF($A$20="","",VLOOKUP($A$20,CalTab!$A$3:$H$980,4,TRUE)) ->  | E20: =IF($A$20="","",VLOOKUP($A$20,CalTab!$A$3:$H$980,5,TRUE)) ->  | F20: =IF($A$20="","",VLOOKUP($A$20,CalTab!$A$3:$H$980,6,TRUE)) ->  | G20: =IF($A$20="","",VLOOKUP($A$20,CalTab!$A$3:$H$980,7,TRUE)) ->  | H20: =IF($A$20="","",VLOOKUP($A$20,CalTab!$A$3:$H$980,8,TRUE)) ->  | J20: =IF($A$20="","",VLOOKUP($A$20,CalTab!$A$3:$G$980,3,TRUE)) ->  | K20: =IF($A$20="","",D20*$I$20/$B$20) ->  | L20: =IF($A$20="","",VLOOKUP($A$20,CalTab!$A$3:$G$980,5,TRUE)) ->  | M20: =IF($A$20="","",VLOOKUP($A$20,CalTab!$A$3:$G$980,6,TRUE)) ->  | N20: =IF($A$20="","",VLOOKUP($A$20,CalTab!$A$3:$G$980,7,TRUE)) ->  | O20: =IF($A$20="","",H20*$I$20/$B$20) -> 
B21: =IF($A$21="","",VLOOKUP($A$21,CalTab!$A$3:$G$980,2,TRUE)) ->  | C21: =IF($A$21="","",VLOOKUP($A$21,CalTab!$A$3:$G$980,3,TRUE)) ->  | D21: =IF($A$21="","",VLOOKUP($A$21,CalTab!$A$3:$H$980,4,TRUE)) ->  | E21: =IF($A$21="","",VLOOKUP($A$21,CalTab!$A$3:$H$980,5,TRUE)) ->  | F21: =IF($A$21="","",VLOOKUP($A$21,CalTab!$A$3:$H$980,6,TRUE)) ->  | G21: =IF($A$21="","",VLOOKUP($A$21,CalTab!$A$3:$H$980,7,TRUE)) ->  | H21: =IF($A$21="","",VLOOKUP($A$21,CalTab!$A$3:$H$980,8,TRUE)) ->  | J21: =IF($A$21="","",VLOOKUP($A$21,CalTab!$A$3:$G$980,3,TRUE)) ->  | K21: =IF($A$21="","",D21*$I$21/$B$21) ->  | L21: =IF($A$21="","",VLOOKUP($A$21,CalTab!$A$3:$G$980,5,TRUE)) ->  | M21: =IF($A$21="","",VLOOKUP($A$21,CalTab!$A$3:$G$980,6,TRUE)) ->  | N21: =IF($A$21="","",VLOOKUP($A$21,CalTab!$A$3:$G$980,7,TRUE)) ->  | O21: =IF($A$21="","",H21*$I$21/$B$21) -> 
B22: =IF($A$22="","",VLOOKUP($A$22,CalTab!$A$3:$G$980,2,TRUE)) ->  | C22: =IF($A$22="","",VLOOKUP($A$22,CalTab!$A$3:$G$980,3,TRUE)) ->  | D22: =IF($A$22="","",VLOOKUP($A$22,CalTab!$A$3:$H$980,4,TRUE)) ->  | E22: =IF($A$22="","",VLOOKUP($A$22,CalTab!$A$3:$H$980,5,TRUE)) ->  | F22: =IF($A$22="","",VLOOKUP($A$22,CalTab!$A$3:$H$980,6,TRUE)) ->  | G22: =IF($A$22="","",VLOOKUP($A$22,CalTab!$A$3:$H$980,7,TRUE)) ->  | H22: =IF($A$22="","",VLOOKUP($A$22,CalTab!$A$3:$H$980,8,TRUE)) ->  | J22: =IF($A$22="","",VLOOKUP($A$22,CalTab!$A$3:$G$980,3,TRUE)) ->  | K22: =IF($A$22="","",D22*$I$22/$B$22) ->  | L22: =IF($A$22="","",VLOOKUP($A$22,CalTab!$A$3:$G$980,5,TRUE)) ->  | M22: =IF($A$22="","",VLOOKUP($A$22,CalTab!$A$3:$G$980,6,TRUE)) ->  | N22: =IF($A$22="","",VLOOKUP($A$22,CalTab!$A$3:$G$980,7,TRUE)) ->  | O22: =IF($A$22="","",H22*$I$22/$B$22) -> 
B23: =IF($A$23="","",VLOOKUP($A$23,CalTab!$A$3:$G$980,2,TRUE)) ->  | C23: =IF($A$23="","",VLOOKUP($A$23,CalTab!$A$3:$G$980,3,TRUE)) ->  | D23: =IF($A$23="","",VLOOKUP($A$23,CalTab!$A$3:$H$980,4,TRUE)) ->  | E23: =IF($A$23="","",VLOOKUP($A$23,CalTab!$A$3:$H$980,5,TRUE)) ->  | F23: =IF($A$23="","",VLOOKUP($A$23,CalTab!$A$3:$H$980,6,TRUE)) ->  | G23: =IF($A$23="","",VLOOKUP($A$23,CalTab!$A$3:$H$980,7,TRUE)) ->  | H23: =IF($A$23="","",VLOOKUP($A$23,CalTab!$A$3:$H$980,8,TRUE)) ->  | J23: =IF($A$23="","",VLOOKUP($A$23,CalTab!$A$3:$G$980,3,TRUE)) ->  | K23: =IF($A$23="","",D23*$I$23/$B$23) ->  | L23: =IF($A$23="","",VLOOKUP($A$23,CalTab!$A$3:$G$980,5,TRUE)) ->  | M23: =IF($A$23="","",VLOOKUP($A$23,CalTab!$A$3:$G$980,6,TRUE)) ->  | N23: =IF($A$23="","",VLOOKUP($A$23,CalTab!$A$3:$G$980,7,TRUE)) ->  | O23: =IF($A$23="","",H23*$I$23/$B$23) -> 
B24: =IF($A$24="","",VLOOKUP($A$24,CalTab!$A$3:$G$980,2,TRUE)) ->  | C24: =IF($A$24="","",VLOOKUP($A$24,CalTab!$A$3:$G$980,3,TRUE)) ->  | D24: =IF($A$24="","",VLOOKUP($A$24,CalTab!$A$3:$H$980,4,TRUE)) ->  | E24: =IF($A$24="","",VLOOKUP($A$24,CalTab!$A$3:$H$980,5,TRUE)) ->  | F24: =IF($A$24="","",VLOOKUP($A$24,CalTab!$A$3:$H$980,6,TRUE)) ->  | G24: =IF($A$24="","",VLOOKUP($A$24,CalTab!$A$3:$H$980,7,TRUE)) ->  | H24: =IF($A$24="","",VLOOKUP($A$24,CalTab!$A$3:$H$980,8,TRUE)) ->  | J24: =IF($A$24="","",VLOOKUP($A$24,CalTab!$A$3:$G$980,3,TRUE)) ->  | K24: =IF($A$24="","",D24*$I$24/$B$24) ->  | L24: =IF($A$24="","",VLOOKUP($A$24,CalTab!$A$3:$G$980,5,TRUE)) ->  | M24: =IF($A$24="","",VLOOKUP($A$24,CalTab!$A$3:$G$980,6,TRUE)) ->  | N24: =IF($A$24="","",VLOOKUP($A$24,CalTab!$A$3:$G$980,7,TRUE)) ->  | O24: =IF($A$24="","",H24*$I$24/$B$24) -> 
B25: =IF($A$25="","",VLOOKUP($A$25,CalTab!$A$3:$G$980,2,TRUE)) ->  | C25: =IF($A$25="","",VLOOKUP($A$25,CalTab!$A$3:$G$980,3,TRUE)) ->  | D25: =IF($A$25="","",VLOOKUP($A$25,CalTab!$A$3:$H$980,4,TRUE)) ->  | E25: =IF($A$25="","",VLOOKUP($A$25,CalTab!$A$3:$H$980,5,TRUE)) ->  | F25: =IF($A$25="","",VLOOKUP($A$25,CalTab!$A$3:$H$980,6,TRUE)) ->  | G25: =IF($A$25="","",VLOOKUP($A$25,CalTab!$A$3:$H$980,7,TRUE)) ->  | H25: =IF($A$25="","",VLOOKUP($A$25,CalTab!$A$3:$H$980,8,TRUE)) ->  | J25: =IF($A$25="","",VLOOKUP($A$25,CalTab!$A$3:$G$980,3,TRUE)) ->  | K25: =IF($A$25="","",D25*$I$25/$B$25) ->  | L25: =IF($A$25="","",VLOOKUP($A$25,CalTab!$A$3:$G$980,5,TRUE)) ->  | M25: =IF($A$25="","",VLOOKUP($A$25,CalTab!$A$3:$G$980,6,TRUE)) ->  | N25: =IF($A$25="","",VLOOKUP($A$25,CalTab!$A$3:$G$980,7,TRUE)) ->  | O25: =IF($A$25="","",H25*$I$25/$B$25) -> 
B26: =IF($A$26="","",VLOOKUP($A$26,CalTab!$A$3:$G$980,2,TRUE)) ->  | C26: =IF($A$26="","",VLOOKUP($A$26,CalTab!$A$3:$G$980,3,TRUE)) ->  | D26: =IF($A$26="","",VLOOKUP($A$26,CalTab!$A$3:$H$980,4,TRUE)) ->  | E26: =IF($A$26="","",VLOOKUP($A$26,CalTab!$A$3:$H$980,5,TRUE)) ->  | F26: =IF($A$26="","",VLOOKUP($A$26,CalTab!$A$3:$H$980,6,TRUE)) ->  | G26: =IF($A$26="","",VLOOKUP($A$26,CalTab!$A$3:$H$980,7,TRUE)) ->  | H26: =IF($A$26="","",VLOOKUP($A$26,CalTab!$A$3:$H$980,8,TRUE)) ->  | J26: =IF($A$26="","",VLOOKUP($A$26,CalTab!$A$3:$G$980,3,TRUE)) ->  | K26: =IF($A$26="","",D26*$I$26/$B$26) ->  | L26: =IF($A$26="","",VLOOKUP($A$26,CalTab!$A$3:$G$980,5,TRUE)) ->  | M26: =IF($A$26="","",VLOOKUP($A$26,CalTab!$A$3:$G$980,6,TRUE)) ->  | N26: =IF($A$26="","",VLOOKUP($A$26,CalTab!$A$3:$G$980,7,TRUE)) ->  | O26: =IF($A$26="","",H26*$I$26/$B$26) -> 
B27: =IF($A$27="","",VLOOKUP($A$27,CalTab!$A$3:$G$980,2,TRUE)) ->  | C27: =IF($A$27="","",VLOOKUP($A$27,CalTab!$A$3:$G$980,3,TRUE)) ->  | D27: =IF($A$27="","",VLOOKUP($A$27,CalTab!$A$3:$H$980,4,TRUE)) ->  | E27: =IF($A$27="","",VLOOKUP($A$27,CalTab!$A$3:$H$980,5,TRUE)) ->  | F27: =IF($A$27="","",VLOOKUP($A$27,CalTab!$A$3:$H$980,6,TRUE)) ->  | G27: =IF($A$27="","",VLOOKUP($A$27,CalTab!$A$3:$H$980,7,TRUE)) ->  | H27: =IF($A$27="","",VLOOKUP($A$27,CalTab!$A$3:$H$980,8,TRUE)) ->  | J27: =IF($A$27="","",VLOOKUP($A$27,CalTab!$A$3:$G$980,3,TRUE)) ->  | K27: =IF($A$27="","",D27*$I$27/$B$27) ->  | L27: =IF($A$27="","",VLOOKUP($A$27,CalTab!$A$3:$G$980,5,TRUE)) ->  | M27: =IF($A$27="","",VLOOKUP($A$27,CalTab!$A$3:$G$980,6,TRUE)) ->  | N27: =IF($A$27="","",VLOOKUP($A$27,CalTab!$A$3:$G$980,7,TRUE)) ->  | O27: =IF($A$27="","",H27*$I$27/$B$27) -> 
B28: =IF($A$28="","",VLOOKUP($A$28,CalTab!$A$3:$G$980,2,TRUE)) ->  | C28: =IF($A$28="","",VLOOKUP($A$28,CalTab!$A$3:$G$980,3,TRUE)) ->  | D28: =IF($A$28="","",VLOOKUP($A$28,CalTab!$A$3:$H$980,4,TRUE)) ->  | E28: =IF($A$28="","",VLOOKUP($A$28,CalTab!$A$3:$H$980,5,TRUE)) ->  | F28: =IF($A$28="","",VLOOKUP($A$28,CalTab!$A$3:$H$980,6,TRUE)) ->  | G28: =IF($A$28="","",VLOOKUP($A$28,CalTab!$A$3:$H$980,7,TRUE)) ->  | H28: =IF($A$28="","",VLOOKUP($A$28,CalTab!$A$3:$H$980,8,TRUE)) ->  | J28: =IF($A$28="","",VLOOKUP($A$28,CalTab!$A$3:$G$980,3,TRUE)) ->  | K28: =IF($A$28="","",D28*$I$28/$B$28) ->  | L28: =IF($A$28="","",VLOOKUP($A$28,CalTab!$A$3:$G$980,5,TRUE)) ->  | M28: =IF($A$28="","",VLOOKUP($A$28,CalTab!$A$3:$G$980,6,TRUE)) ->  | N28: =IF($A$28="","",VLOOKUP($A$28,CalTab!$A$3:$G$980,7,TRUE)) ->  | O28: =IF($A$28="","",H28*$I$28/$B$28) -> 
B29: =IF($A$29="","",VLOOKUP($A$29,CalTab!$A$3:$G$980,2,TRUE)) ->  | C29: =IF($A$29="","",VLOOKUP($A$29,CalTab!$A$3:$G$980,3,TRUE)) ->  | D29: =IF($A$29="","",VLOOKUP($A$29,CalTab!$A$3:$H$980,4,TRUE)) ->  | E29: =IF($A$29="","",VLOOKUP($A$29,CalTab!$A$3:$H$980,5,TRUE)) ->  | F29: =IF($A$29="","",VLOOKUP($A$29,CalTab!$A$3:$H$980,6,TRUE)) ->  | G29: =IF($A$29="","",VLOOKUP($A$29,CalTab!$A$3:$H$980,7,TRUE)) ->  | H29: =IF($A$29="","",VLOOKUP($A$29,CalTab!$A$3:$H$980,8,TRUE)) ->  | J29: =IF($A$29="","",VLOOKUP($A$29,CalTab!$A$3:$G$980,3,TRUE)) ->  | K29: =IF($A$29="","",D29*$I$29/$B$29) ->  | L29: =IF($A$29="","",VLOOKUP($A$29,CalTab!$A$3:$G$980,5,TRUE)) ->  | M29: =IF($A$29="","",VLOOKUP($A$29,CalTab!$A$3:$G$980,6,TRUE)) ->  | N29: =IF($A$29="","",VLOOKUP($A$29,CalTab!$A$3:$G$980,7,TRUE)) ->  | O29: =IF($A$29="","",H29*$I$29/$B$29) -> 
B30: =IF($A$30="","",VLOOKUP($A$30,CalTab!$A$3:$G$980,2,TRUE)) ->  | C30: =IF($A$30="","",VLOOKUP($A$30,CalTab!$A$3:$G$980,3,TRUE)) ->  | D30: =IF($A$30="","",VLOOKUP($A$30,CalTab!$A$3:$H$980,4,TRUE)) ->  | E30: =IF($A$30="","",VLOOKUP($A$30,CalTab!$A$3:$H$980,5,TRUE)) ->  | F30: =IF($A$30="","",VLOOKUP($A$30,CalTab!$A$3:$H$980,6,TRUE)) ->  | G30: =IF($A$30="","",VLOOKUP($A$30,CalTab!$A$3:$H$980,7,TRUE)) ->  | H30: =IF($A$30="","",VLOOKUP($A$30,CalTab!$A$3:$H$980,8,TRUE)) ->  | J30: =IF($A$30="","",VLOOKUP($A$30,CalTab!$A$3:$G$980,3,TRUE)) ->  | K30: =IF($A$30="","",D30*$I$30/$B$30) ->  | L30: =IF($A$30="","",VLOOKUP($A$30,CalTab!$A$3:$G$980,5,TRUE)) ->  | M30: =IF($A$30="","",VLOOKUP($A$30,CalTab!$A$3:$G$980,6,TRUE)) ->  | N30: =IF($A$30="","",VLOOKUP($A$30,CalTab!$A$3:$G$980,7,TRUE)) ->  | O30: =IF($A$30="","",H30*$I$30/$B$30) -> 
B31: =IF($A$31="","",VLOOKUP($A$31,CalTab!$A$3:$G$980,2,TRUE)) ->  | C31: =IF($A$31="","",VLOOKUP($A$31,CalTab!$A$3:$G$980,3,TRUE)) ->  | D31: =IF($A$31="","",VLOOKUP($A$31,CalTab!$A$3:$H$980,4,TRUE)) ->  | E31: =IF($A$31="","",VLOOKUP($A$31,CalTab!$A$3:$H$980,5,TRUE)) ->  | F31: =IF($A$31="","",VLOOKUP($A$31,CalTab!$A$3:$H$980,6,TRUE)) ->  | G31: =IF($A$31="","",VLOOKUP($A$31,CalTab!$A$3:$H$980,7,TRUE)) ->  | H31: =IF($A$31="","",VLOOKUP($A$31,CalTab!$A$3:$H$980,8,TRUE)) ->  | J31: =IF($A$31="","",VLOOKUP($A$31,CalTab!$A$3:$G$980,3,TRUE)) ->  | K31: =IF($A$31="","",D31*$I$31/$B$31) ->  | L31: =IF($A$31="","",VLOOKUP($A$31,CalTab!$A$3:$G$980,5,TRUE)) ->  | M31: =IF($A$31="","",VLOOKUP($A$31,CalTab!$A$3:$G$980,6,TRUE)) ->  | N31: =IF($A$31="","",VLOOKUP($A$31,CalTab!$A$3:$G$980,7,TRUE)) ->  | O31: =IF($A$31="","",H31*$I$31/$B$31) -> 
B32: =IF($A$32="","",VLOOKUP($A$32,CalTab!$A$3:$G$980,2,TRUE)) ->  | C32: =IF($A$32="","",VLOOKUP($A$32,CalTab!$A$3:$G$980,3,TRUE)) ->  | D32: =IF($A$32="","",VLOOKUP($A$32,CalTab!$A$3:$H$980,4,TRUE)) ->  | E32: =IF($A$32="","",VLOOKUP($A$32,CalTab!$A$3:$H$980,5,TRUE)) ->  | F32: =IF($A$32="","",VLOOKUP($A$32,CalTab!$A$3:$H$980,6,TRUE)) ->  | G32: =IF($A$32="","",VLOOKUP($A$32,CalTab!$A$3:$H$980,7,TRUE)) ->  | H32: =IF($A$32="","",VLOOKUP($A$32,CalTab!$A$3:$H$980,8,TRUE)) ->  | J32: =IF($A$32="","",VLOOKUP($A$32,CalTab!$A$3:$G$980,3,TRUE)) ->  | K32: =IF($A$32="","",D32*$I$32/$B$32) ->  | L32: =IF($A$32="","",VLOOKUP($A$32,CalTab!$A$3:$G$980,5,TRUE)) ->  | M32: =IF($A$32="","",VLOOKUP($A$32,CalTab!$A$3:$G$980,6,TRUE)) ->  | N32: =IF($A$32="","",VLOOKUP($A$32,CalTab!$A$3:$G$980,7,TRUE)) ->  | O32: =IF($A$32="","",H32*$I$32/$B$32) -> 
B33: =IF($A$33="","",VLOOKUP($A$33,CalTab!$A$3:$G$980,2,TRUE)) ->  | C33: =IF($A$33="","",VLOOKUP($A$33,CalTab!$A$3:$G$980,3,TRUE)) ->  | D33: =IF($A$33="","",VLOOKUP($A$33,CalTab!$A$3:$H$980,4,TRUE)) ->  | E33: =IF($A$33="","",VLOOKUP($A$33,CalTab!$A$3:$H$980,5,TRUE)) ->  | F33: =IF($A$33="","",VLOOKUP($A$33,CalTab!$A$3:$H$980,6,TRUE)) ->  | G33: =IF($A$33="","",VLOOKUP($A$33,CalTab!$A$3:$H$980,7,TRUE)) ->  | H33: =IF($A$33="","",VLOOKUP($A$33,CalTab!$A$3:$H$980,8,TRUE)) ->  | J33: =IF($A$33="","",VLOOKUP($A$33,CalTab!$A$3:$G$980,3,TRUE)) ->  | K33: =IF($A$33="","",D33*$I$33/$B$33) ->  | L33: =IF($A$33="","",VLOOKUP($A$33,CalTab!$A$3:$G$980,5,TRUE)) ->  | M33: =IF($A$33="","",VLOOKUP($A$33,CalTab!$A$3:$G$980,6,TRUE)) ->  | N33: =IF($A$33="","",VLOOKUP($A$33,CalTab!$A$3:$G$980,7,TRUE)) ->  | O33: =IF($A$33="","",H33*$I$33/$B$33) -> 
B34: =IF($A$34="","",VLOOKUP($A$34,CalTab!$A$3:$G$980,2,TRUE)) ->  | C34: =IF($A$34="","",VLOOKUP($A$34,CalTab!$A$3:$G$980,3,TRUE)) ->  | D34: =IF($A$34="","",VLOOKUP($A$34,CalTab!$A$3:$H$980,4,TRUE)) ->  | E34: =IF($A$34="","",VLOOKUP($A$34,CalTab!$A$3:$H$980,5,TRUE)) ->  | F34: =IF($A$34="","",VLOOKUP($A$34,CalTab!$A$3:$H$980,6,TRUE)) ->  | G34: =IF($A$34="","",VLOOKUP($A$34,CalTab!$A$3:$H$980,7,TRUE)) ->  | H34: =IF($A$34="","",VLOOKUP($A$34,CalTab!$A$3:$H$980,8,TRUE)) ->  | J34: =IF($A$34="","",VLOOKUP($A$34,CalTab!$A$3:$G$980,3,TRUE)) ->  | K34: =IF($A$34="","",D34*$I$34/$B$34) ->  | L34: =IF($A$34="","",VLOOKUP($A$34,CalTab!$A$3:$G$980,5,TRUE)) ->  | M34: =IF($A$34="","",VLOOKUP($A$34,CalTab!$A$3:$G$980,6,TRUE)) ->  | N34: =IF($A$34="","",VLOOKUP($A$34,CalTab!$A$3:$G$980,7,TRUE)) ->  | O34: =IF($A$34="","",H34*$I$34/$B$34) -> 
B35: =IF($A$35="","",VLOOKUP($A$35,CalTab!$A$3:$G$980,2,TRUE)) ->  | C35: =IF($A$35="","",VLOOKUP($A$35,CalTab!$A$3:$G$980,3,TRUE)) ->  | D35: =IF($A$35="","",VLOOKUP($A$35,CalTab!$A$3:$H$980,4,TRUE)) ->  | E35: =IF($A$35="","",VLOOKUP($A$35,CalTab!$A$3:$H$980,5,TRUE)) ->  | F35: =IF($A$35="","",VLOOKUP($A$35,CalTab!$A$3:$H$980,6,TRUE)) ->  | G35: =IF($A$35="","",VLOOKUP($A$35,CalTab!$A$3:$H$980,7,TRUE)) ->  | H35: =IF($A$35="","",VLOOKUP($A$35,CalTab!$A$3:$H$980,8,TRUE)) ->  | J35: =IF($A$35="","",VLOOKUP($A$35,CalTab!$A$3:$G$980,3,TRUE)) ->  | K35: =IF($A$35="","",D35*$I$35/$B$35) ->  | L35: =IF($A$35="","",VLOOKUP($A$35,CalTab!$A$3:$G$980,5,TRUE)) ->  | M35: =IF($A$35="","",VLOOKUP($A$35,CalTab!$A$3:$G$980,6,TRUE)) ->  | N35: =IF($A$35="","",VLOOKUP($A$35,CalTab!$A$3:$G$980,7,TRUE)) ->  | O35: =IF($A$35="","",H35*$I$35/$B$35) -> 
B36: =IF($A$36="","",VLOOKUP($A$36,CalTab!$A$3:$G$980,2,TRUE)) ->  | C36: =IF($A$36="","",VLOOKUP($A$36,CalTab!$A$3:$G$980,3,TRUE)) ->  | D36: =IF($A$36="","",VLOOKUP($A$36,CalTab!$A$3:$H$980,4,TRUE)) ->  | E36: =IF($A$36="","",VLOOKUP($A$36,CalTab!$A$3:$H$980,5,TRUE)) ->  | F36: =IF($A$36="","",VLOOKUP($A$36,CalTab!$A$3:$H$980,6,TRUE)) ->  | G36: =IF($A$36="","",VLOOKUP($A$36,CalTab!$A$3:$H$980,7,TRUE)) ->  | H36: =IF($A$36="","",VLOOKUP($A$36,CalTab!$A$3:$H$980,8,TRUE)) ->  | J36: =IF($A$36="","",VLOOKUP($A$36,CalTab!$A$3:$G$980,3,TRUE)) ->  | K36: =IF($A$36="","",D36*$I$36/$B$36) ->  | L36: =IF($A$36="","",VLOOKUP($A$36,CalTab!$A$3:$G$980,5,TRUE)) ->  | M36: =IF($A$36="","",VLOOKUP($A$36,CalTab!$A$3:$G$980,6,TRUE)) ->  | N36: =IF($A$36="","",VLOOKUP($A$36,CalTab!$A$3:$G$980,7,TRUE)) ->  | O36: =IF($A$36="","",H36*$I$36/$B$36) -> 
B37: =IF($A$37="","",VLOOKUP($A$37,CalTab!$A$3:$G$980,2,TRUE)) ->  | C37: =IF($A$37="","",VLOOKUP($A$37,CalTab!$A$3:$G$980,3,TRUE)) ->  | D37: =IF($A$37="","",VLOOKUP($A$37,CalTab!$A$3:$H$980,4,TRUE)) ->  | E37: =IF($A$37="","",VLOOKUP($A$37,CalTab!$A$3:$H$980,5,TRUE)) ->  | F37: =IF($A$37="","",VLOOKUP($A$37,CalTab!$A$3:$H$980,6,TRUE)) ->  | G37: =IF($A$37="","",VLOOKUP($A$37,CalTab!$A$3:$H$980,7,TRUE)) ->  | H37: =IF($A$37="","",VLOOKUP($A$37,CalTab!$A$3:$H$980,8,TRUE)) ->  | J37: =IF($A$37="","",VLOOKUP($A$37,CalTab!$A$3:$G$980,3,TRUE)) ->  | K37: =IF($A$37="","",D37*$I$37/$B$37) ->  | L37: =IF($A$37="","",VLOOKUP($A$37,CalTab!$A$3:$G$980,5,TRUE)) ->  | M37: =IF($A$37="","",VLOOKUP($A$37,CalTab!$A$3:$G$980,6,TRUE)) ->  | N37: =IF($A$37="","",VLOOKUP($A$37,CalTab!$A$3:$G$980,7,TRUE)) ->  | O37: =IF($A$37="","",H37*$I$37/$B$37) -> 
B38: =IF($A$38="","",VLOOKUP($A$38,CalTab!$A$3:$G$980,2,TRUE)) ->  | C38: =IF($A$38="","",VLOOKUP($A$38,CalTab!$A$3:$G$980,3,TRUE)) ->  | D38: =IF($A$38="","",VLOOKUP($A$38,CalTab!$A$3:$H$980,4,TRUE)) ->  | E38: =IF($A$38="","",VLOOKUP($A$38,CalTab!$A$3:$H$980,5,TRUE)) ->  | F38: =IF($A$38="","",VLOOKUP($A$38,CalTab!$A$3:$H$980,6,TRUE)) ->  | G38: =IF($A$38="","",VLOOKUP($A$38,CalTab!$A$3:$H$980,7,TRUE)) ->  | H38: =IF($A$38="","",VLOOKUP($A$38,CalTab!$A$3:$H$980,8,TRUE)) ->  | J38: =IF($A$38="","",VLOOKUP($A$38,CalTab!$A$3:$G$980,3,TRUE)) ->  | K38: =IF($A$38="","",D38*$I$38/$B$38) ->  | L38: =IF($A$38="","",VLOOKUP($A$38,CalTab!$A$3:$G$980,5,TRUE)) ->  | M38: =IF($A$38="","",VLOOKUP($A$38,CalTab!$A$3:$G$980,6,TRUE)) ->  | N38: =IF($A$38="","",VLOOKUP($A$38,CalTab!$A$3:$G$980,7,TRUE)) ->  | O38: =IF($A$38="","",H38*$I$38/$B$38) -> 
B39: =IF($A$39="","",VLOOKUP($A$39,CalTab!$A$3:$G$980,2,TRUE)) ->  | C39: =IF($A$39="","",VLOOKUP($A$39,CalTab!$A$3:$G$980,3,TRUE)) ->  | D39: =IF($A$39="","",VLOOKUP($A$39,CalTab!$A$3:$H$980,4,TRUE)) ->  | E39: =IF($A$39="","",VLOOKUP($A$39,CalTab!$A$3:$H$980,5,TRUE)) ->  | F39: =IF($A$39="","",VLOOKUP($A$39,CalTab!$A$3:$H$980,6,TRUE)) ->  | G39: =IF($A$39="","",VLOOKUP($A$39,CalTab!$A$3:$H$980,7,TRUE)) ->  | H39: =IF($A$39="","",VLOOKUP($A$39,CalTab!$A$3:$H$980,8,TRUE)) ->  | J39: =IF($A$39="","",VLOOKUP($A$39,CalTab!$A$3:$G$980,3,TRUE)) ->  | K39: =IF($A$39="","",D39*$I$39/$B$39) ->  | L39: =IF($A$39="","",VLOOKUP($A$39,CalTab!$A$3:$G$980,5,TRUE)) ->  | M39: =IF($A$39="","",VLOOKUP($A$39,CalTab!$A$3:$G$980,6,TRUE)) ->  | N39: =IF($A$39="","",VLOOKUP($A$39,CalTab!$A$3:$G$980,7,TRUE)) ->  | O39: =IF($A$39="","",H39*$I$39/$B$39) -> 
B40: =IF($A$40="","",VLOOKUP($A$40,CalTab!$A$3:$G$980,2,TRUE)) ->  | C40: =IF($A$40="","",VLOOKUP($A$40,CalTab!$A$3:$G$980,3,TRUE)) ->  | D40: =IF($A$40="","",VLOOKUP($A$40,CalTab!$A$3:$H$980,4,TRUE)) ->  | E40: =IF($A$40="","",VLOOKUP($A$40,CalTab!$A$3:$H$980,5,TRUE)) ->  | F40: =IF($A$40="","",VLOOKUP($A$40,CalTab!$A$3:$H$980,6,TRUE)) ->  | G40: =IF($A$40="","",VLOOKUP($A$40,CalTab!$A$3:$H$980,7,TRUE)) ->  | H40: =IF($A$40="","",VLOOKUP($A$40,CalTab!$A$3:$H$980,8,TRUE)) ->  | J40: =IF($A$40="","",VLOOKUP($A$40,CalTab!$A$3:$G$980,3,TRUE)) ->  | K40: =IF($A$40="","",D40*$I$40/$B$40) ->  | L40: =IF($A$40="","",VLOOKUP($A$40,CalTab!$A$3:$G$980,5,TRUE)) ->  | M40: =IF($A$40="","",VLOOKUP($A$40,CalTab!$A$3:$G$980,6,TRUE)) ->  | N40: =IF($A$40="","",VLOOKUP($A$40,CalTab!$A$3:$G$980,7,TRUE)) ->  | O40: =IF($A$40="","",H40*$I$40/$B$40) -> 
B41: =IF($A$41="","",VLOOKUP($A$41,CalTab!$A$3:$G$980,2,TRUE)) ->  | C41: =IF($A$41="","",VLOOKUP($A$41,CalTab!$A$3:$G$980,3,TRUE)) ->  | D41: =IF($A$41="","",VLOOKUP($A$41,CalTab!$A$3:$H$980,4,TRUE)) ->  | E41: =IF($A$41="","",VLOOKUP($A$41,CalTab!$A$3:$H$980,5,TRUE)) ->  | F41: =IF($A$41="","",VLOOKUP($A$41,CalTab!$A$3:$H$980,6,TRUE)) ->  | G41: =IF($A$41="","",VLOOKUP($A$41,CalTab!$A$3:$H$980,7,TRUE)) ->  | H41: =IF($A$41="","",VLOOKUP($A$41,CalTab!$A$3:$H$980,8,TRUE)) ->  | J41: =IF($A$41="","",VLOOKUP($A$41,CalTab!$A$3:$G$980,3,TRUE)) ->  | K41: =IF($A$41="","",D41*$I$341/$B$41) ->  | L41: =IF($A$41="","",VLOOKUP($A$41,CalTab!$A$3:$G$980,5,TRUE)) ->  | M41: =IF($A$41="","",VLOOKUP($A$41,CalTab!$A$3:$G$980,6,TRUE)) ->  | N41: =IF($A$41="","",VLOOKUP($A$41,CalTab!$A$3:$G$980,7,TRUE)) ->  | O41: =IF($A$41="","",H41*$I$41/$B$41) -> 
B42: =IF($A$42="","",VLOOKUP($A$42,CalTab!$A$3:$G$980,2,TRUE)) ->  | C42: =IF($A$42="","",VLOOKUP($A$42,CalTab!$A$3:$G$980,3,TRUE)) ->  | D42: =IF($A$42="","",VLOOKUP($A$42,CalTab!$A$3:$H$980,3,TRUE)) ->  | E42: =IF($A$42="","",VLOOKUP($A$42,CalTab!$A$3:$H$980,5,TRUE)) ->  | F42: =IF($A$42="","",VLOOKUP($A$42,CalTab!$A$3:$H$980,6,TRUE)) ->  | G42: =IF($A$42="","",VLOOKUP($A$42,CalTab!$A$3:$H$980,7,TRUE)) ->  | H42: =IF($A$42="","",VLOOKUP($A$42,CalTab!$A$3:$H$980,8,TRUE)) ->  | J42: =IF($A$42="","",VLOOKUP($A$42,CalTab!$A$3:$G$980,3,TRUE)) ->  | K42: =IF($A$42="","",D42*$I$42/$B$42) ->  | L42: =IF($A$42="","",VLOOKUP($A$42,CalTab!$A$3:$G$980,5,TRUE)) ->  | M42: =IF($A$42="","",VLOOKUP($A$42,CalTab!$A$3:$G$980,6,TRUE)) ->  | N42: =IF($A$42="","",VLOOKUP($A$42,CalTab!$A$3:$G$980,7,TRUE)) ->  | O42: =IF($A$42="","",H42*$I$42/$B$42) -> 
B43: =IF($A$43="","",VLOOKUP($A$43,CalTab!$A$3:$G$980,2,TRUE)) ->  | C43: =IF($A$43="","",VLOOKUP($A$43,CalTab!$A$3:$G$980,3,TRUE)) ->  | D43: =IF($A$43="","",VLOOKUP($A$43,CalTab!$A$3:$H$980,3,TRUE)) ->  | E43: =IF($A$43="","",VLOOKUP($A$43,CalTab!$A$3:$H$980,5,TRUE)) ->  | F43: =IF($A$43="","",VLOOKUP($A$43,CalTab!$A$3:$H$980,6,TRUE)) ->  | G43: =IF($A$43="","",VLOOKUP($A$43,CalTab!$A$3:$H$980,7,TRUE)) ->  | H43: =IF($A$43="","",VLOOKUP($A$43,CalTab!$A$3:$H$980,8,TRUE)) ->  | J43: =IF($A$43="","",VLOOKUP($A$43,CalTab!$A$3:$G$980,3,TRUE)) ->  | K43: =IF($A$43="","",D43*$I$43/$B$43) ->  | L43: =IF($A$43="","",VLOOKUP($A$43,CalTab!$A$3:$G$980,5,TRUE)) ->  | M43: =IF($A$43="","",VLOOKUP($A$43,CalTab!$A$3:$G$980,6,TRUE)) ->  | N43: =IF($A$43="","",VLOOKUP($A$43,CalTab!$A$3:$G$980,7,TRUE)) ->  | O43: =IF($A$43="","",H43*$I$43/$B$43) -> 
B44: =IF($A$44="","",VLOOKUP($A$44,CalTab!$A$3:$G$980,2,TRUE)) ->  | C44: =IF($A$44="","",VLOOKUP($A$44,CalTab!$A$3:$G$980,3,TRUE)) ->  | D44: =IF($A$44="","",VLOOKUP($A$44,CalTab!$A$3:$H$980,3,TRUE)) ->  | E44: =IF($A$44="","",VLOOKUP($A$44,CalTab!$A$3:$H$980,5,TRUE)) ->  | F44: =IF($A$44="","",VLOOKUP($A$44,CalTab!$A$3:$H$980,6,TRUE)) ->  | G44: =IF($A$44="","",VLOOKUP($A$44,CalTab!$A$3:$H$980,7,TRUE)) ->  | H44: =IF($A$44="","",VLOOKUP($A$44,CalTab!$A$3:$H$980,8,TRUE)) ->  | J44: =IF($A$44="","",VLOOKUP($A$44,CalTab!$A$3:$G$980,3,TRUE)) ->  | K44: =IF($A$44="","",D44*$I$44/$B$44) ->  | L44: =IF($A$44="","",VLOOKUP($A$44,CalTab!$A$3:$G$980,5,TRUE)) ->  | M44: =IF($A$44="","",VLOOKUP($A$44,CalTab!$A$3:$G$980,6,TRUE)) ->  | N44: =IF($A$44="","",VLOOKUP($A$44,CalTab!$A$3:$G$980,7,TRUE)) ->  | O44: =IF($A$44="","",H44*$I$44/$B$44) -> 
B45: =IF($A$45="","",VLOOKUP($A$45,CalTab!$A$3:$G$980,2,TRUE)) ->  | C45: =IF($A$45="","",VLOOKUP($A$45,CalTab!$A$3:$G$980,3,TRUE)) ->  | D45: =IF($A$45="","",VLOOKUP($A$45,CalTab!$A$3:$H$980,3,TRUE)) ->  | E45: =IF($A$45="","",VLOOKUP($A$45,CalTab!$A$3:$H$980,5,TRUE)) ->  | F45: =IF($A$45="","",VLOOKUP($A$45,CalTab!$A$3:$H$980,6,TRUE)) ->  | G45: =IF($A$45="","",VLOOKUP($A$45,CalTab!$A$3:$H$980,7,TRUE)) ->  | H45: =IF($A$45="","",VLOOKUP($A$45,CalTab!$A$3:$H$980,8,TRUE)) ->  | J45: =IF($A$45="","",VLOOKUP($A$45,CalTab!$A$3:$G$980,3,TRUE)) ->  | K45: =IF($A$45="","",D45*$I$45/$B$45) ->  | L45: =IF($A$45="","",VLOOKUP($A$45,CalTab!$A$3:$G$980,5,TRUE)) ->  | M45: =IF($A$45="","",VLOOKUP($A$45,CalTab!$A$3:$G$980,6,TRUE)) ->  | N45: =IF($A$45="","",VLOOKUP($A$45,CalTab!$A$3:$G$980,7,TRUE)) ->  | O45: =IF($A$45="","",H45*$I$45/$B$45) -> 
B46: =IF($A$46="","",VLOOKUP($A$46,CalTab!$A$3:$G$980,2,TRUE)) ->  | C46: =IF($A$46="","",VLOOKUP($A$46,CalTab!$A$3:$G$980,3,TRUE)) ->  | D46: =IF($A$46="","",VLOOKUP($A$46,CalTab!$A$3:$H$980,3,TRUE)) ->  | E46: =IF($A$46="","",VLOOKUP($A$46,CalTab!$A$3:$H$980,5,TRUE)) ->  | F46: =IF($A$46="","",VLOOKUP($A$46,CalTab!$A$3:$H$980,6,TRUE)) ->  | G46: =IF($A$46="","",VLOOKUP($A$46,CalTab!$A$3:$H$980,7,TRUE)) ->  | H46: =IF($A$46="","",VLOOKUP($A$46,CalTab!$A$3:$H$980,8,TRUE)) ->  | J46: =IF($A$46="","",VLOOKUP($A$46,CalTab!$A$3:$G$980,3,TRUE)) ->  | K46: =IF($A$46="","",D46*$I$46/$B$46) ->  | L46: =IF($A$46="","",VLOOKUP($A$46,CalTab!$A$3:$G$980,5,TRUE)) ->  | M46: =IF($A$46="","",VLOOKUP($A$46,CalTab!$A$3:$G$980,6,TRUE)) ->  | N46: =IF($A$46="","",VLOOKUP($A$46,CalTab!$A$3:$G$980,7,TRUE)) ->  | O46: =IF($A$46="","",H46*$I$46/$B$46) -> 
B47: =IF($A$47="","",VLOOKUP($A$47,CalTab!$A$3:$G$980,2,TRUE)) ->  | C47: =IF($A$47="","",VLOOKUP($A$47,CalTab!$A$3:$G$980,3,TRUE)) ->  | D47: =IF($A$47="","",VLOOKUP($A$47,CalTab!$A$3:$H$980,3,TRUE)) ->  | E47: =IF($A$47="","",VLOOKUP($A$47,CalTab!$A$3:$H$980,5,TRUE)) ->  | F47: =IF($A$47="","",VLOOKUP($A$47,CalTab!$A$3:$H$980,6,TRUE)) ->  | G47: =IF($A$47="","",VLOOKUP($A$47,CalTab!$A$3:$H$980,7,TRUE)) ->  | H47: =IF($A$47="","",VLOOKUP($A$47,CalTab!$A$3:$H$980,8,TRUE)) ->  | J47: =IF($A$47="","",VLOOKUP($A$47,CalTab!$A$3:$G$980,3,TRUE)) ->  | K47: =IF($A$47="","",D47*$I$47/$B$47) ->  | L47: =IF($A$47="","",VLOOKUP($A$47,CalTab!$A$3:$G$980,5,TRUE)) ->  | M47: =IF($A$47="","",VLOOKUP($A$47,CalTab!$A$3:$G$980,6,TRUE)) ->  | N47: =IF($A$47="","",VLOOKUP($A$47,CalTab!$A$3:$G$980,7,TRUE)) ->  | O47: =IF($A$47="","",H47*$I$47/$B$47) -> 
B48: =IF($A$48="","",VLOOKUP($A$48,CalTab!$A$3:$G$980,2,TRUE)) ->  | C48: =IF($A$48="","",VLOOKUP($A$48,CalTab!$A$3:$G$980,3,TRUE)) ->  | D48: =IF($A$48="","",VLOOKUP($A$48,CalTab!$A$3:$H$980,3,TRUE)) ->  | E48: =IF($A$48="","",VLOOKUP($A$48,CalTab!$A$3:$H$980,5,TRUE)) ->  | F48: =IF($A$48="","",VLOOKUP($A$48,CalTab!$A$3:$H$980,6,TRUE)) ->  | G48: =IF($A$48="","",VLOOKUP($A$48,CalTab!$A$3:$H$980,7,TRUE)) ->  | H48: =IF($A$48="","",VLOOKUP($A$48,CalTab!$A$3:$H$980,8,TRUE)) ->  | J48: =IF($A$48="","",VLOOKUP($A$48,CalTab!$A$3:$G$980,3,TRUE)) ->  | K48: =IF($A$48="","",D48*$I$48/$B$48) ->  | L48: =IF($A$48="","",VLOOKUP($A$48,CalTab!$A$3:$G$980,5,TRUE)) ->  | M48: =IF($A$48="","",VLOOKUP($A$48,CalTab!$A$3:$G$980,6,TRUE)) ->  | N48: =IF($A$48="","",VLOOKUP($A$48,CalTab!$A$3:$G$980,7,TRUE)) ->  | O48: =IF($A$48="","",H48*$I$48/$B$48) -> 
B49: =IF($A$49="","",VLOOKUP($A$49,CalTab!$A$3:$G$980,2,TRUE)) ->  | C49: =IF($A$49="","",VLOOKUP($A$49,CalTab!$A$3:$G$980,3,TRUE)) ->  | D49: =IF($A$49="","",VLOOKUP($A$49,CalTab!$A$3:$H$980,3,TRUE)) ->  | E49: =IF($A$49="","",VLOOKUP($A$49,CalTab!$A$3:$H$980,5,TRUE)) ->  | F49: =IF($A$49="","",VLOOKUP($A$49,CalTab!$A$3:$H$980,6,TRUE)) ->  | G49: =IF($A$49="","",VLOOKUP($A$49,CalTab!$A$3:$H$980,7,TRUE)) ->  | H49: =IF($A$49="","",VLOOKUP($A$49,CalTab!$A$3:$H$980,8,TRUE)) ->  | J49: =IF($A$49="","",VLOOKUP($A$49,CalTab!$A$3:$G$980,3,TRUE)) ->  | K49: =IF($A$49="","",D49*$I$49/$B$49) ->  | L49: =IF($A$49="","",VLOOKUP($A$49,CalTab!$A$3:$G$980,5,TRUE)) ->  | M49: =IF($A$49="","",VLOOKUP($A$49,CalTab!$A$3:$G$980,6,TRUE)) ->  | N49: =IF($A$49="","",VLOOKUP($A$49,CalTab!$A$3:$G$980,7,TRUE)) ->  | O49: =IF($A$49="","",H49*$I$49/$B$49) -> 
B50: =IF($A$50="","",VLOOKUP($A$50,CalTab!$A$3:$G$980,2,TRUE)) ->  | C50: =IF($A$50="","",VLOOKUP($A$50,CalTab!$A$3:$G$980,3,TRUE)) ->  | D50: =IF($A$50="","",VLOOKUP($A$50,CalTab!$A$3:$H$980,3,TRUE)) ->  | E50: =IF($A$50="","",VLOOKUP($A$50,CalTab!$A$3:$H$980,5,TRUE)) ->  | F50: =IF($A$50="","",VLOOKUP($A$50,CalTab!$A$3:$H$980,6,TRUE)) ->  | G50: =IF($A$50="","",VLOOKUP($A$50,CalTab!$A$3:$H$980,7,TRUE)) ->  | H50: =IF($A$50="","",VLOOKUP($A$50,CalTab!$A$3:$H$980,8,TRUE)) ->  | J50: =IF($A$50="","",VLOOKUP($A$50,CalTab!$A$3:$G$980,3,TRUE)) ->  | K50: =IF($A$50="","",D50*$I$50/$B$50) ->  | L50: =IF($A$50="","",VLOOKUP($A$50,CalTab!$A$3:$G$980,5,TRUE)) ->  | M50: =IF($A$50="","",VLOOKUP($A$50,CalTab!$A$3:$G$980,6,TRUE)) ->  | N50: =IF($A$50="","",VLOOKUP($A$50,CalTab!$A$3:$G$980,7,TRUE)) ->  | O50: =IF($A$50="","",H50*$I$50/$B$50) -> 
B51: =IF($A$51="","",VLOOKUP($A$51,CalTab!$A$3:$G$980,2,TRUE)) ->  | C51: =IF($A$51="","",VLOOKUP($A$51,CalTab!$A$3:$G$980,3,TRUE)) ->  | D51: =IF($A$51="","",VLOOKUP($A$51,CalTab!$A$3:$H$980,3,TRUE)) ->  | E51: =IF($A$51="","",VLOOKUP($A$51,CalTab!$A$3:$H$980,5,TRUE)) ->  | F51: =IF($A$51="","",VLOOKUP($A$51,CalTab!$A$3:$H$980,6,TRUE)) ->  | G51: =IF($A$51="","",VLOOKUP($A$51,CalTab!$A$3:$H$980,7,TRUE)) ->  | H51: =IF($A$51="","",VLOOKUP($A$51,CalTab!$A$3:$H$980,8,TRUE)) ->  | J51: =IF($A$51="","",VLOOKUP($A$51,CalTab!$A$3:$G$980,3,TRUE)) ->  | K51: =IF($A$51="","",D51*$I$51/$B$51) ->  | L51: =IF($A$51="","",VLOOKUP($A$51,CalTab!$A$3:$G$980,5,TRUE)) ->  | M51: =IF($A$51="","",VLOOKUP($A$51,CalTab!$A$3:$G$980,6,TRUE)) ->  | N51: =IF($A$51="","",VLOOKUP($A$51,CalTab!$A$3:$G$980,7,TRUE)) ->  | O51: =IF($A$51="","",H51*$I$51/$B$51) -> 
B52: =IF($A$52="","",VLOOKUP($A$52,CalTab!$A$3:$G$980,2,TRUE)) ->  | C52: =IF($A$52="","",VLOOKUP($A$52,CalTab!$A$3:$G$980,3,TRUE)) ->  | D52: =IF($A$52="","",VLOOKUP($A$52,CalTab!$A$3:$H$980,3,TRUE)) ->  | E52: =IF($A$52="","",VLOOKUP($A$52,CalTab!$A$3:$H$980,5,TRUE)) ->  | F52: =IF($A$52="","",VLOOKUP($A$52,CalTab!$A$3:$H$980,6,TRUE)) ->  | G52: =IF($A$52="","",VLOOKUP($A$52,CalTab!$A$3:$H$980,7,TRUE)) ->  | H52: =IF($A$52="","",VLOOKUP($A$52,CalTab!$A$3:$H$980,8,TRUE)) ->  | J52: =IF($A$52="","",VLOOKUP($A$52,CalTab!$A$3:$G$980,3,TRUE)) ->  | K52: =IF($A$52="","",D52*$I$52/$B$52) ->  | L52: =IF($A$52="","",VLOOKUP($A$52,CalTab!$A$3:$G$980,5,TRUE)) ->  | M52: =IF($A$52="","",VLOOKUP($A$52,CalTab!$A$3:$G$980,6,TRUE)) ->  | N52: =IF($A$52="","",VLOOKUP($A$52,CalTab!$A$3:$G$980,7,TRUE)) ->  | O52: =IF($A$52="","",H52*$I$52/$B$52) -> 
B53: =IF($A$53="","",VLOOKUP($A$53,CalTab!$A$3:$G$980,2,TRUE)) ->  | C53: =IF($A$53="","",VLOOKUP($A$53,CalTab!$A$3:$G$980,3,TRUE)) ->  | D53: =IF($A$53="","",VLOOKUP($A$53,CalTab!$A$3:$H$980,3,TRUE)) ->  | E53: =IF($A$53="","",VLOOKUP($A$53,CalTab!$A$3:$H$980,5,TRUE)) ->  | F53: =IF($A$53="","",VLOOKUP($A$53,CalTab!$A$3:$H$980,6,TRUE)) ->  | G53: =IF($A$53="","",VLOOKUP($A$53,CalTab!$A$3:$H$980,7,TRUE)) ->  | H53: =IF($A$53="","",VLOOKUP($A$53,CalTab!$A$3:$H$980,8,TRUE)) ->  | J53: =IF($A$53="","",VLOOKUP($A$53,CalTab!$A$3:$G$980,3,TRUE)) ->  | K53: =IF($A$53="","",D53*$I$53/$B$53) ->  | L53: =IF($A$53="","",VLOOKUP($A$53,CalTab!$A$3:$G$980,5,TRUE)) ->  | M53: =IF($A$53="","",VLOOKUP($A$53,CalTab!$A$3:$G$980,6,TRUE)) ->  | N53: =IF($A$53="","",VLOOKUP($A$53,CalTab!$A$3:$G$980,7,TRUE)) ->  | O53: =IF($A$53="","",H53*$I$53/$B$53) -> 
B54: =IF($A$54="","",VLOOKUP($A$54,CalTab!$A$3:$G$980,2,TRUE)) ->  | C54: =IF($A$54="","",VLOOKUP($A$54,CalTab!$A$3:$G$980,3,TRUE)) ->  | D54: =IF($A$54="","",VLOOKUP($A$54,CalTab!$A$3:$H$980,3,TRUE)) ->  | E54: =IF($A$54="","",VLOOKUP($A$54,CalTab!$A$3:$H$980,5,TRUE)) ->  | F54: =IF($A$54="","",VLOOKUP($A$54,CalTab!$A$3:$H$980,6,TRUE)) ->  | G54: =IF($A$54="","",VLOOKUP($A$54,CalTab!$A$3:$H$980,7,TRUE)) ->  | H54: =IF($A$54="","",VLOOKUP($A$54,CalTab!$A$3:$H$980,8,TRUE)) ->  | J54: =IF($A$54="","",VLOOKUP($A$54,CalTab!$A$3:$G$980,3,TRUE)) ->  | K54: =IF($A$54="","",D54*$I$54/$B$54) ->  | L54: =IF($A$54="","",VLOOKUP($A$54,CalTab!$A$3:$G$980,5,TRUE)) ->  | M54: =IF($A$54="","",VLOOKUP($A$54,CalTab!$A$3:$G$980,6,TRUE)) ->  | N54: =IF($A$54="","",VLOOKUP($A$54,CalTab!$A$3:$G$980,7,TRUE)) ->  | O54: =IF($A$54="","",H54*$I$54/$B$54) -> 
